Workbook

Sheet _SurveyPartMetadata (hidden)
A1: Survey Name: | B1: Tenant Satisfaction Measures Return (TSMs)
A2: Survey ID: | B2: 31
A3: Survey Part Name: | B3: Tenant Satisfaction Measures Return
A4: Survey Part ID: | B4: 52
A5: Submission Part ID: | B5: 63909
A6: Provider ID: | B6: 9749
A7: Time Period ID: | B7: 15

Sheet Tenant_Satisfaction_Measures_Re
B2: NROSH+ 2024
B4: Spreadsheet Import Template
D6: Version:
D7: Latest Issue Date:
D9: Provider: | E9: Habitare Homes Limited
D10: Time Period: | E10: 2024
B12: Instructions
D14: Description
D16: Worksheet Information:
D17: 1) Worksheet One: Cover Sheet
D18: 2) Worksheet Two: Sect 1a - Background
D19: 3) Worksheet Three: Sect 1b - Background
D20: 4) Worksheet Four: Sect 2 - Published TSMs
D21: 5) Worksheet Five: Sect 3 - TSMs reported by all
D22: 6) Worksheet Six: Sect 4 - TSMs reported for LCRA
D23: 7) Worksheet Seven: Sect 5 - TSMs reported for LCHO
D24: 8) Worksheet Eight: Sect 6 - TSMs reported Combined
D30: Workbooks are locked. Formatting and structure should not be altered
D31: If data is being pasted from another location, please ensure only cell values are copied across (using paste special)
D32: When you save this file to your own computer system, you can rename it. However, you must not change the name of any of the worksheets within it (Cover Sheet, Validations etc…)
D33: This document, and only this document, should be used as the source for data import
D38: Any pre-existing data contained within the relevant part of this survey will be overridden by the data contained within this sheet on import
D39: If the question is highlighted in red, enter negative values into all cells in that line
D40: If any part of the import process fails, the entire transaction will be rolled back – i.e. the import will work in full or not at all
E46: Enter your data in cells with this colour
E47: Automatically totalling cells
E48: Pre-populated data

Sheet Sect 1a - Background
B3: Section 1a - Background
B5: This section allows for the collection of information relating to the tenant perception survey approach, sampling and methodology behind the collection and production of the tenant perception survey TSMs.
B6: Note: If you are reporting tenant perception measures for both LCRA in section 4 and LCHO in section 5 independently you will need to complete this section and section 1b.
B8: Survey completion
B10: Q1 | C10: Please confirm how you are reporting the TSMs relating to Complaints and Tenant Perception Measures.
C11: Note: this question asks you to confirm how you are reporting TSMs relating to complaints (CH01 and CH02) and your Tenant Perception Measures (TP01, TP05-TP12). | D11: Reported for LCRA stock | E11: Yes | F11: =IF(AND(DP_TSML001="Yes",DP_TSML002="No",DP_TSML003="No"),"If the response to Sect 1a Q1L1 is 'Yes' and Sect 1a Q1L2 is 'No' then please complete this section and leave section 1b blank.",IF(AND(DP_TSML001="No",DP_TSML002="Yes",DP_TSML003="No"),"If the response to Sect 1a Q1L1 is 'No' and Sect 1a Q1L2 is 'Yes' then please complete this section and leave section 1b blank.",IF(AND(DP_TSML001="Yes",DP_TSML002="Yes",DP_TSML003="No"),"If Sect 1a Q1L1 is 'Yes' and Sect 1a Q1L2 is 'Yes' please complete this section, selecting the stock type for which you are reporting (e.g. LCRA or LCHO) and then complete Section 1b, selecting the other stock type for which you are reporting.",IF(OR(AND(DP_TSML001="Yes",DP_TSML002="No",DP_TSML003="Yes"),AND(DP_TSML001="No",DP_TSML002="Yes",DP_TSML003="Yes"),AND(DP_TSML001="Yes",DP_TSML002="Yes",DP_TSML003="Yes")),"If the response to Sect 1a Q1L3 is 'Yes' and either Q1L1 or Q1L2 is 'Yes' then please check the way in which you are reporting TSMs meet requirements. We would not anticipate you reporting these TSMs for both a single stock type and the combined stock.","")))) -> If Sect 1a Q1L1 is 'Yes' and Sect 1a Q1L2 is 'Yes' please complete this section, selecting the stock type for which you are reporting (e.g. LCRA or LCHO) and then complete Section 1b, selecting the other stock type for which you are reporting.
D12: Reported for LCHO stock | E12: Yes
D13: Reported for LCRA and LCHO stock combined | E13: No
B19: Background information
B22: Q2 | C22: Please select which section this background information relates to: | E22: LCRA - section 4
B24: Q3 | C24: Please select your survey approach used to generate reported perception TSMs (for the stock basis listed above). | E24: Phased approach
B26: Q4 | C26: We also ask that you upload a summary of your approach AND a copy of the questionnaire used to collect the perception TSMs as supporting document(s) to this survey. Please confirm here that you have done so. | E26: Yes - I have uploaded the supporting documentation
B28: Q5 | C28: Collection date of earliest survey response used in reported TSMs​. | E28: 2024-04-02
B29: Q6 | C29: Collection date of latest survey response used in reported TSMs​. | E29: 2024-06-11
B31: Q7 | C31: Have any external contractors been used in the collection and/or analysis of the survey​? | E31: Yes
B32: Q7a | C32: If yes, please name the contract organisation(s)​ | E32: Qa Research
B34: Q8 | C34: Did you use any incentives for tenants to complete the survey​? | E34: Yes
B35: Q8a | C35: If yes, what was the incentive?​ | E35: £100 prize draw offered following completion of the survey.
B40: Q9 | C40: Have you been able to achieve all of the requirements set out in the TSM tenant survey requirements?​ | E40: Yes
B41: Q9a | C41: If you have been unable to achieve all the requirements set out in the TSM tenant survey requirements, we ask you to upload a supporting document to this survey providing more information as to what you have been unable to achieve. Please confirm in this question that you have done so.
B46: Sample size information
B48: Q10 | C48: Confirm the size of your relevant tenant population for the purposes of the tenant perception measures. | E48: 90
B50: Q11 | C50: How many tenants did you not include in the sample frame due to the exceptional circumstances outlined in paragraph 63 of TSM tenant survey requirements?​ | E50: 0
B52: Q12 | C52: Did you use a census or a sample to collect survey responses​? | E52: Census
B54: Q13 | C54: Please confirm the total number of responses to your survey for each of the following survey methods:
D56: Telephone | E56: 16
D57: Internet​ | E57: 6
D58: Face to face | E58: 0
D59: Postal​ | E59: 0
D60: SMS​ | E60: 0
D61: All other methods ​ | E61: 0
D62: Total sample size achieved​. | E62: =DP_TSML018+DP_TSML019+DP_TSML020+DP_TSML021+DP_TSML022+DP_TSML023 -> 22
B64: Q13a | C64: If you used any ‘other methods’, please provide more details on the ones used.
B70: Weighting approach
C72: Note: if you have not weighted your survey responses you should answer ‘no’ to the first question and then leave the remaining questions in the section blank
B74: Q14 | C74: Did you use weighted responses to calculate your tenant perception measures? | E74: No
B76: Q14a | C76: Please provide brief details of any weighting used.

Sheet Sect 1b - Background
B3: Section 1b - Background
B5: This section allows for the collection of information relating to the tenant perception survey approach, sampling and methodology behind the collection and production of the tenant perception survey TSMs.
B6: Note: You should only complete this section (section 1b) if you are reporting tenant perception measures for both LCRA in section 4 and LCHO in section 5 independently. Please see guidance for more information.
B8: Survey completion (taken from Sect 1a - Background)
B10: Q1 | C10: Please confirm how you are reporting the TSMs relating to Complaints and Tenant Perception Measures.
D11: Reported for LCRA stock | E11: ='Sect 1a - Background'!DP_TSML001 -> Yes
C12: The values here will be drawn from Section 1a | D12: Reported for LCHO stock | E12: ='Sect 1a - Background'!DP_TSML002 -> Yes
D13: Reported for LCRA and LCHO stock combined | E13: ='Sect 1a - Background'!DP_TSML003 -> No
B19: Background information
B22: Q2 | C22: Please select which section this background information relates to: | E22: LCHO - section 5
B24: Q3 | C24: Please select your survey approach used to generate reported perception TSMs (for the stock basis listed above). | E24: Phased approach
B26: Q4 | C26: We also ask that you upload a summary of your approach AND a copy of the questionnaire used to collect the perception TSMs as supporting document(s) to this survey. Please confirm here that you have done so. | E26: Yes - I have uploaded the supporting documentation
B28: Q5 | C28: Collection date of earliest survey response used in reported TSMs​. | E28: 2024-04-02
B29: Q6 | C29: Collection date of latest survey response used in reported TSMs​. | E29: 2024-06-11
B31: Q7 | C31: Have any external contractors been used in the collection and/or analysis of the survey​? | E31: Yes
B32: Q7a | C32: If yes, please name the contract organisation(s)​ | E32: Qa Research
B34: Q8 | C34: Did you use any incentives for tenants to complete the survey​? | E34: Yes
B35: Q8a | C35: If yes, what was the incentive?​ | E35: £100 prize draw offered following completion of the survey.
B40: Q9 | C40: Have you been able to achieve all of the requirements set out in the TSM tenant survey requirements?​ | E40: Yes
B41: Q9a | C41: If you have been unable to achieve all the requirements set out in the TSM tenant survey requirements, we ask you to upload a supporting document to this survey providing more information as to what you have been unable to achieve. Please confirm in this question that you have done so.
B46: Sample size information
B48: Q10 | C48: Confirm the size of your relevant tenant population for the purposes of the tenant perception measures. | E48: 120
B50: Q11 | C50: How many tenants did you not include in the sample frame due to the exceptional circumstances outlined in paragraph 63 of TSM tenant survey requirements?​ | E50: 0
B52: Q12 | C52: Did you use a census or a sample to collect survey responses​? | E52: Census
B54: Q13 | C54: Please confirm the total number of responses to your survey for each of the following survey methods:
D56: Telephone | E56: 27
D57: Internet​ | E57: 27
D58: Face to face | E58: 0
D59: Postal​ | E59: 0
D60: SMS​ | E60: 0
D61: All other methods ​ | E61: 0
D62: Total sample size achieved​. | E62: =DP_TSML061+DP_TSML062+DP_TSML063+DP_TSML064+DP_TSML065+DP_TSML066 -> 54
B64: Q13a | C64: If you used any ‘other methods’, please provide more details on the ones used.
B70: Weighting approach
C72: Note: if you have not weighted your survey responses you should answer ‘no’ to the first question and then leave the remaining questions in the section blank
B74: Q14 | C74: Did you use weighted responses to calculate your tenant perception measures? | E74: No
B76: Q14b | C76: Please provide brief details of any weighting used.

Sheet Sect 2 - Published TSMs
B3: Section 2 - Published TSMs
B4: The TSMs reported in this table should match your published performance against the tenant satisfaction measures.
B5: You must complete the table below, filling in the correct columns based on the relevant social housing stock basis for which you have published your TSMs.
B6: Q1 Publication information
B8: Q1a | C8: Have you published your performance against the TSMs? | F8: No
B10: Q1b | C10: If there are any TSMs where it was not possible (or will not be possible) to publish the results, please provide a brief explanation as to why this was the case. | D10: Website will be updated by external 3rd party week commencing 01/07/2024.
B12: Q1c | C12: Please confirm the end date of the reporting year to which your reported TSMs relate | F12: 2023-12-31 | G12: This date should represent the end date of the 12 month period to which the TSMs reported in this return relate.
B15: Q2 If you have published your performance against the TSMs
B17: Q2a | C17: Please confirm the date on which you published your performance against the TSMs
B18: Q2b | C18: Did you publish your performance against the TSMs online?
B19: Q2bi | C19: If yes, please provide the permanent URL you have used to publish your TSM results. This could be the performance information or TSM section of your website rather than a direct link to the results. | D19: https://habitarehomes.co.uk/report/
B20: Q2c | C20: If you have not published your performance against the TSMs online, please briefly outline your approach to publication.
B21: Q2ci | C21: If you have not published your performance against the TSMs online, please upload a copy of your publication as a supporting document. Please confirm that you have done so here.
B23: Q3 If you have NOT yet published your performance against the TSMs
B25: Q3a | C25: Please confirm the date on which you INTEND to publish your performance against the TSMs | F25: 2024-07-05
B26: Q3b | C26: Do you intend to publish your performance against the TSMs online? | F26: Yes
B27: Q3bi | C27: If yes, please provide the permanent URL you intend to use to publish your TSM results (if available). This could be the performance information or TSM section of your website rather than a direct link to the results.
B28: Q3bii | C28: Please upload any documents you have to support your online publication approach, such as a final draft of your planned online publication as a supporting document. Please confirm that you have done so here. | D28: Yes - I have uploaded a supporting document
B29: Q3c | C29: If you do not intend to publish your performance against the TSMs online, please briefly outline your intended approach to publication.
B30: Q3ci | C30: If you do not intend to publish your performance online, please upload any documents you have to support your publication approach, such as a final draft of your planned publication as a supporting document. Please confirm that you have done so here.
B32: Q4a Building safety
B34: Note: All proportions should be reported to one decimal place (with 99.5% recorded as 99.5 and not 0.995)
D36: LCRA | E36: LCHO | F36: Combined
B37: BS01 | C37: Proportion of homes for which all required gas safety checks have been carried out. | F37: 100
B38: BS02 | C38: Proportion of homes for which all required fire risk assessments have been carried out. | F38: 100
B39: BS03 | C39: Proportion of homes for which all required asbestos management surveys or re-inspections have been carried out. | F39: 100
B40: BS04 | C40: Proportion of homes for which all required legionella risk assessments have been carried out. | F40: 33.1
B41: BS05 | C41: Proportion of homes for which all required communal passenger lift safety checks have been carried out. | F41: 100
B43: Q4b Anti-social behaviour
D45: LCRA | E45: LCHO | F45: Combined
B46: NM01 (1) | C46: Number of anti-social behaviour cases, opened per 1,000 homes. | F46: 0
B47: NM01 (2) | C47: Number of anti-social behaviour cases that involve hate incidents opened per 1,000 homes | F47: 0
B49: Q4c DHS and repairs
B51: Note: All proportions should be reported to one decimal place (with 99.5% recorded as 99.5 and not 0.995)
D53: LCRA | E53: LCHO | F53: Combined
B54: RP01 | C54: Proportion of homes that do not meet the Decent Homes Standard. | D54: 0
B55: RP02 (1) | C55: Proportion of non-emergency responsive repairs completed within the landlord’s target timescale. | D55: 90
B56: RP02 (2) | C56: Proportion of emergency responsive repairs completed within the landlord’s target timescale. | D56: 93.3
B58: Q4d Complaints
B60: Note: All proportions should be reported to one decimal place (with 99.5% recorded as 99.5 and not 0.995)
D62: LCRA | E62: LCHO | F62: Combined
B63: CH01 (1) | C63: Number of stage one complaints received per 1,000 homes. | D63: 33.3 | E63: 100 | F63: 71.4
B64: CH01 (2) | C64: Number of stage two complaints received per 1,000 homes. | D64: 0 | E64: 58.3 | F64: 33.3
B65: CH02 (1) | C65: Proportion of stage one complaints responded to within the Housing Ombudsman’s Complaint Handling Code timescales. | D65: 100 | E65: 83.3 | F65: 86.7
B66: CH02 (2) | C66: Proportion of stage two complaints responded to within the Housing Ombudsman’s Complaint Handling Code timescales. | D66: 0 | E66: 71.4 | F66: 71.4
B68: Q4e Tenant perception measures
B70: Note: All proportions should be reported to one decimal place (with 99.5% recorded as 99.5 and not 0.995)
D72: LCRA | E72: LCHO | F72: Combined
B73: TP01 | C73: Proportion of respondents who report that they are satisfied with the overall service from their landlord. | D73: 59.1 | E73: 35.2 | F73: 42.1
B74: TP02 | C74: Proportion of respondents who have received a repair in the last 12 months who report that they are satisfied with the overall repairs service. | D74: 83.3 | F74: 83.3 | G74: For TP02 to TP04 - please ensure that proportions reported relate only to responses from tenants in LCRA stock as per the guidance.
B75: TP03 | C75: Proportion of respondents who have received a repair in the last 12 months who report that they are satisfied with the time taken to complete their most recent repair. | D75: 66.7 | F75: 66.7
B76: TP04 | C76: Proportion of respondents who report that they are satisfied that their home is well maintained. | D76: 63.6 | F76: 63.6
B77: TP05 | C77: Proportion of respondents who report that they are satisfied that their home is safe. | D77: 90.9 | E77: 53.7 | F77: 64.5
B78: TP06 | C78: Proportion of respondents who report that they are satisfied that their landlord listens to tenant views and acts upon them. | D78: 47.4 | E78: 26.9 | F78: 32.4
B79: TP07 | C79: Proportion of respondents who report that they are satisfied that their landlord keeps them informed about things that matter to them. | D79: 61.9 | E79: 29.4 | F79: 38.9
B80: TP08 | C80: Proportion of respondents who report that they agree their landlord treats them fairly and with respect. | D80: 77.3 | E80: 33.3 | F80: 46.6
B81: TP09 | C81: Proportion of respondents who report making a complaint in the last 12 months who are satisfied with their landlord’s approach to complaints handling. | D81: 33.3 | E81: 12.5 | F81: 17.1
B82: TP10 | C82: Proportion of respondents with communal areas who report that they are satisfied that their landlord keeps communal areas clean and well maintained. | D82: 85.7 | E82: 21.4 | F82: 42.9
B83: TP11 | C83: Proportion of respondents who report that they are satisfied that their landlord makes a positive contribution to the neighbourhood. | D83: 65 | E83: 18.2 | F83: 32.8
B84: TP12 | C84: Proportion of respondents who report that they are satisfied with their landlord’s approach to handling anti-social behaviour. | D84: 73.3 | E84: 18.8 | F84: 36.2

Sheet Sect 3 - TSMs reported by all
B3: Section 3 - TSMs reported by all providers
B5: This section must be completed by all providers.
B6: Achieving the requirements for TSMs calculated for management information
B8: Q1a | C8: Have you been able to achieve all of the requirements set out in the TSM technical requirements for TSMs calculated from management information? | F8: Yes
B9: Q1b | C9: If you have been unable to achieve all the requirements set out in the TSM technical requirements, we ask you to upload a supporting document to this survey providing more information as to what you have been unable to achieve. Please confirm in this question that you have done so.
B11: Building safety TSMs
B13: Q2 | C13: For each of the five Building Safety TSMs please report the numerator and the denominator used to calculate the TSM. The calculation in each line will update once these data have been entered.
C14: Please refer to the guidance document for more details on the correct way to report the numerator and denominator.
D16: Calculation (sum numerator/ denominator) | E16: Numerator used in the calculation of the TSM as defined in the TSM requirements | F16: Denominator used in the calculation of the TSM as defined in the TSM technical requirements
B17: BS01 | C17: Proportion of homes for which all required gas safety checks have been carried out. | D17: =IF(ISERROR((DP_TSML143/DP_TSML144)*100),0,(DP_TSML143/DP_TSML144)*100) -> 100 | E17: 11 | F17: 11
B18: BS02 | C18: Proportion of homes for which all required fire risk assessments have been carried out. | D18: =IF(ISERROR((DP_TSML146/DP_TSML147)*100),0,(DP_TSML146/DP_TSML147)*100) -> 100 | E18: 118 | F18: 118
B19: BS03 | C19: Proportion of homes for which all required asbestos management surveys or re-inspections have been carried out. | D19: =IF(ISERROR((DP_TSML149/DP_TSML150)*100),0,(DP_TSML149/DP_TSML150)*100) -> 100 | E19: 210 | F19: 210
B20: BS04 | C20: Proportion of homes for which all required legionella risk assessments have been carried out. | D20: =IF(ISERROR((DP_TSML152/DP_TSML153)*100),0,(DP_TSML152/DP_TSML153)*100) -> 33.05084746 | E20: 39 | F20: 118
B21: BS05 | C21: Proportion of homes for which all required communal passenger lift safety checks have been carried out. | D21: =IF(ISERROR((DP_TSML155/DP_TSML156)*100),0,(DP_TSML155/DP_TSML156)*100) -> 100 | E21: 118 | F21: 118
B23: Anti-social behaviour TSMs
B25: This TSM has two parts
B26: 1 – the number of anti-social behaviour cases opened per 1,000 homes and
B27: 2 – the number of anti-social behaviour cases (as reported in the first part) that involve hate incidents opened per 1,000 homes.
B29: Q3 | C29: For each of the ASB TSMs please report the numerator and the denominator used to calculate the TSM. The calculation in each line will update once these data have been entered.
C30: Please refer to the guidance document for more details on the correct way to report the numerator and denominator.
D32: Calculation (sum (numerator/ denominator) * 1000) | E32: Numerator Total number of anti-social behaviour cases opened by or on behalf of the provider during the reporting year (including any ASB cases that involve hate incidents) | F32: Denominator Number of dwelling units owned of the relevant social housing stock at year end
B33: NM01 (pt1) | C33: Number of anti-social behaviour cases opened per 1,000 homes. | D33: =IF(ISERROR((DP_TSML158/DP_TSML159)*1000),0,(DP_TSML158/DP_TSML159)*1000) -> 0 | E33: 0 | F33: 210
D34: Calculation (sum (numerator/ denominator) * 1000) | E34: Numerator Number of anti-social behaviour cases (as reported in part 1) that involve hate incidents opened by or on behalf of the provider during the reporting year | F34: Denominator Number of dwelling units owned of the relevant social housing stock at year end
B35: NM01 (pt2) | C35: Number of anti-social behaviour cases that involve hate incidents opened per 1,000 homes. | D35: =IF(ISERROR((DP_TSML161/DP_TSML162)*1000),0,(DP_TSML161/DP_TSML162)*1000) -> 0 | E35: 0 | F35: 210
B37: DHS and repairs TSMs
B39: DHS and repairs TSMs must be reported by all providers but on the basis of their LCRA stock only.
C41: If you do not own any LCRA stock you should leave this section blank
B43: Q4 | C43: For each of the DHS and repairs TSMs please report the numerator and the denominator used to calculate the TSM. The calculation in each line will update once these data have been entered.
C44: Please refer to the guidance document for more details on the correct way to report the numerator and denominator.
D46: Calculation (sum numerator/ denominator) | E46: Numerator used in the calculation of the TSM as defined in the TSM requirements | F46: Denominator used in the calculation of the TSM as defined in the TSM technical requirements
B47: RP01 | C47: Proportion of homes that do not meet the Decent Homes Standard. | D47: =IF(ISERROR((DP_TSML164/DP_TSML165)*100),0,(DP_TSML164/DP_TSML165)*100) -> 0 | E47: 0 | F47: 210
B48: RP02 (pt1) | C48: Proportion of non-emergency responsive repairs completed within the landlord’s target timescale. | D48: =IF(ISERROR((DP_TSML167/DP_TSML168)*100),0,(DP_TSML167/DP_TSML168)*100) -> 90 | E48: 27 | F48: 30
B49: RP02 (pt2) | C49: Proportion of emergency responsive repairs completed within the landlord’s target timescale. | D49: =IF(ISERROR((DP_TSML170/DP_TSML171)*100),0,(DP_TSML170/DP_TSML171)*100) -> 93.33333333 | E49: 14 | F49: 15
B51: Questions Q5a and Q5b are optional
B52: Q
B53: Q5a | C53: What is your (maximum) target timescale for non-emergency repairs used to calculate RP02?​ | D53: 30 days | E53: Please give your response in working days. | G53: This question is optional.
B55: Q5b | C55: What is your (maximum) target timescale for emergency repairs used to calculate RP02? | D55: 24 hours | E55: Please give your response in hours. | G55: This question is optional.

Sheet Sect 4 - TSMs reported for LCRA
B3: Section 4 - TSMs reported for low cost rental accommodation (LCRA) stock
B5: This section allows for the collection of the TSMs relating to LCRA dwelling stock and the information providing the context for these measures.
B7: Complaints TSMs
B9: Stage one complaints
B10: Q1 | C10: Please report the number of stage one complaints and the proportion of these you responded to within the Housing Ombudsman’s Complaint Handling Code timescales as defined in the TSM technical requirements
C11: Please refer to the guidance document for more details on the correct way to report the numerator and denominator.
F13: Calculation (sum (numerator/ denominator) * 1000) | G13: Numerator Number of stage one complaints made by tenants in the relevant stock type during the reporting year | H13: Denominator Number of dwelling units owned of the relevant stock type at year end
B14: CH01 | C14: Number of stage one complaints made by tenants in the relevant stock type during the reporting year per 1,000 homes. | F14: =IF(ISERROR((DP_TSML178/DP_TSML179)*1000),0,(DP_TSML178/DP_TSML179)*1000) -> 33.33333333 | G14: 3 | H14: 90
F15: Calculation (sum (numerator/ denominator) * 100) | G15: Numerator Number of stage one complaints made by tenants during the reporting year for the relevant stock type that were responded to within the Housing Ombudsman’s Complaint Handling Code timescale | H15: Denominator Number of stage one complaints made by tenants in the relevant stock type during the reporting year
B16: CH02 | C16: Proportion of stage one complaints responded to within the Housing Ombudsman’s Complaint Handling Code timescales. | F16: =IF(ISERROR((DP_TSML181/DP_TSML182)*100),0,(DP_TSML181/DP_TSML182)*100) -> 100 | G16: 3 | H16: 3
B19: Q2a | C19: Out of the number of stage one complaints made by tenants during the reporting year, what number were responded to within Complaint Handling Code timescales – | G19: This question is optional.
C20: without the use of extensions permitted in the Code.
B22: Q2b | C22: Out of the number of stage one complaints made by tenants during the reporting year, what number were responded to within Complaint Handling Code timescales – | G22: This question is optional.
C23: with the use of extensions permitted in the Code.
B26: Stage two complaints
B27: Q3 | C27: Please report the number of stage two complaints and the proportion of these you responded to within the Housing Ombudsman’s Complaint Handling Code timescales as defined in TSM technical requirements.
C28: Please refer to the guidance document for more details on the correct way to report the numerator and denominator.
F30: Calculation (sum (numerator/ denominator) * 1000) | G30: Numerator Number of stage two complaints made by tenants in the relevant stock type during the reporting year | H30: Denominator Number of dwelling units owned of the relevant stock type at year end
B31: CH01 | C31: Number of stage two complaints made by tenants in the relevant stock type during the reporting year per 1,000 homes. | F31: =IF(ISERROR((DP_TSML186/DP_TSML187)*1000),0,(DP_TSML186/DP_TSML187)*1000) -> 0 | G31: 0 | H31: 90
F32: Calculation (sum (numerator/ denominator) * 100) | G32: Numerator Number of stage two complaints made by tenants during the reporting year for the relevant stock type that were responded to within the Housing Ombudsman’s Complaint Handling Code timescale | H32: Denominator used in the calculation of the TSM as defined in TSM technical requirements
B33: CH02 | C33: Proportion of stage two complaints responded to within the Housing Ombudsman’s Complaint Handling Code timescales. | F33: =IF(ISERROR((DP_TSML189/DP_TSML190)*100),0,(DP_TSML189/DP_TSML190)*100) -> 0 | G33: 0 | H33: 0
B36: Q4a | C36: Out of the number of stage two complaints made by tenants during the reporting year, what number were responded to within Complaint Handling Code timescales – | D36: Number | E36: This question is optional. | G36: This question is optional.
C37: without the use of extensions permitted in the Code.
B39: Q4b | C39: Out of the number of stage two complaints made by tenants during the reporting year, what number were responded to within Complaint Handling Code timescales – | D39: Number | E39: This question is optional. | G39: This question is optional.
C40: with the use of extensions permitted in the Code.
B43: CH02 Information
B45: Q5a | C45: Has CH02 been calculated using the standard maximum timescales as set out in the Complaint Handling Code for each response stage? | F45: Yes | G45: This question is optional.
B47: Q5b | C47: If ‘No’ what were the maximum timescales used? | I47: This question is optional
B52: Tenant perception measures
B55: Q6 | C55: For each tenant perception measure (TP01-TP12) you must report the number of survey responses used to calculate it as defined in TSM technical requirements.
C56: For TP02, TP03, TP09 and TP10 providers must report the number of respondents who responded ‘Yes’ and the number of respondents who responded ‘No’ to the filter question relevant to that perception measure .
D58: TP01 | E58: TP02 | F58: TP03 | G58: TP04 | H58: TP05 | I58: TP06
D59: Taking everything into account, how satisfied or dissatisfied are you with the service provided by [your landlord]? | E59: How satisfied or dissatisfied are you with the overall repairs service from [your landlord] over the last 12 months? | F59: How satisfied or dissatisfied are you with the time taken to complete your most recent repair after you reported it? | G59: How satisfied or dissatisfied are you that [your landlord] provides a home that is well maintained? | H59: Thinking about the condition of the property or building you live in, how satisfied or dissatisfied are you that [your landlord] provides a home that is safe? | I59: How satisfied or dissatisfied are you that [your landlord] listens to your views and acts upon them?
C60: Number of respondents who responded ‘Yes’ to the filter question relevant to the perception measure. | E60: 6 | F60: 6
C61: Number of respondents who responded ‘No’ to the filter question relevant to the perception measure. | E61: 15 | F61: 15
C63: Very satisfied​ | D63: 6 | E63: 2 | F63: 2 | G63: 7 | H63: 10 | I63: 4
C64: Fairly satisfied​ | D64: 7 | E64: 3 | F64: 2 | G64: 7 | H64: 10 | I64: 5
C65: Neither satisfied nor dissatisfied | D65: 5 | E65: 1 | F65: 0 | G65: 5 | H65: 2 | I65: 4
C66: Fairly dissatisfied​ | D66: 3 | E66: 0 | F66: 0 | G66: 1 | H66: 0 | I66: 4
C67: Very dissatisfied​ | D67: 1 | E67: 0 | F67: 2 | G67: 2 | H67: 0 | I67: 2
C68: Not applicable/ don’t know* | H68: 0 | I68: 3
C69: Calculated TSM: Proportion of respondents who report that they are satisfied | D69: =IF(ISERROR((DP_TSML195+DP_TSML196)/(DP_TSML195+DP_TSML196+DP_TSML197+DP_TSML198+DP_TSML199)*100),0,(DP_TSML195+DP_TSML196)/(DP_TSML195+DP_TSML196+DP_TSML197+DP_TSML198+DP_TSML199)*100) -> 59.09090909 | E69: =IF(ISERROR((DP_TSML204+DP_TSML205)/(DP_TSML204+DP_TSML205+DP_TSML206+DP_TSML207+DP_TSML208)*100),0,(DP_TSML204+DP_TSML205)/(DP_TSML204+DP_TSML205+DP_TSML206+DP_TSML207+DP_TSML208)*100) -> 83.33333333 | F69: =IF(ISERROR((DP_TSML213+DP_TSML214)/(DP_TSML213+DP_TSML214+DP_TSML215+DP_TSML216+DP_TSML217)*100),0,(DP_TSML213+DP_TSML214)/(DP_TSML213+DP_TSML214+DP_TSML215+DP_TSML216+DP_TSML217)*100) -> 66.66666667 | G69: =IF(ISERROR((DP_TSML220+DP_TSML221)/(DP_TSML220+DP_TSML221+DP_TSML222+DP_TSML223+DP_TSML224)*100),0,(DP_TSML220+DP_TSML221)/(DP_TSML220+DP_TSML221+DP_TSML222+DP_TSML223+DP_TSML224)*100) -> 63.63636364 | H69: =IF(ISERROR((DP_TSML227+DP_TSML228)/(DP_TSML227+DP_TSML228+DP_TSML229+DP_TSML230+DP_TSML231)*100),0,(DP_TSML227+DP_TSML228)/(DP_TSML227+DP_TSML228+DP_TSML229+DP_TSML230+DP_TSML231)*100) -> 90.90909091 | I69: =IF(ISERROR((DP_TSML234+DP_TSML235)/(DP_TSML234+DP_TSML235+DP_TSML236+DP_TSML237+DP_TSML238)*100),0,(DP_TSML234+DP_TSML235)/(DP_TSML234+DP_TSML235+DP_TSML236+DP_TSML237+DP_TSML238)*100) -> 47.36842105
C71: * The option ‘Not applicable/ don’t know’ is only a specified response to TP05, TP06, TP07, TP08, TP11 and TP12.
D73: TP07 | E73: TP08 | F73: TP09 | G73: TP10 | H73: TP11 | I73: TP12
D74: How satisfied or dissatisfied are you that [your landlord] keeps you informed about things that matter to you? | E74: To what extent do you agree or disagree with the following “[my landlord] treats me fairly and with respect”? | F74: How satisfied or dissatisfied are you with [your landlord]’s approach to complaints handling? | G74: How satisfied or dissatisfied are you that [your landlord] keeps these communal areas clean and well maintained? | H74: How satisfied or dissatisfied are you that [your landlord] makes a positive contribution to your neighbourhood? | I74: How satisfied or dissatisfied are you with [your landlord]’s approach to handling anti-social behaviour?
C75: Number of respondents who responded ‘Yes’ to the filter question relevant to the perception measure. | F75: 9 | G75: 15
C76: Number of respondents who responded ‘No’ to the filter question relevant to the perception measure. | F76: 13 | G76: 6
C78: Very satisfied​ (or Strongly agree for TP08) | D78: 5 | E78: 11 | F78: 2 | G78: 3 | H78: 3 | I78: 2
C79: Fairly satisfied​ (or Agree for TP08) | D79: 8 | E79: 6 | F79: 1 | G79: 9 | H79: 10 | I79: 9
C80: Neither satisfied nor dissatisfied (or Neither agree nor disagree for TP08) | D80: 2 | E80: 3 | F80: 2 | G80: 0 | H80: 3 | I80: 3
C81: Fairly dissatisfied​ (or Disagree for TP08) | D81: 3 | E81: 1 | F81: 2 | G81: 1 | H81: 2 | I81: 0
C82: Very dissatisfied​ (or Strongly disagree for TP08) | D82: 3 | E82: 1 | F82: 2 | G82: 1 | H82: 2 | I82: 1
C83: Not applicable/ don’t know* | D83: 1 | E83: 0 | H83: 2 | I83: 7
C84: Calculated TSM: Proportion of respondents who report that they are satisfied (or that they agree TP08) | D84: =IF(ISERROR((DP_TSML241+DP_TSML242)/(DP_TSML241+DP_TSML242+DP_TSML243+DP_TSML244+DP_TSML245)*100),0,(DP_TSML241+DP_TSML242)/(DP_TSML241+DP_TSML242+DP_TSML243+DP_TSML244+DP_TSML245)*100) -> 61.9047619 | E84: =IF(ISERROR((DP_TSML248+DP_TSML249)/(DP_TSML248+DP_TSML249+DP_TSML250+DP_TSML251+DP_TSML252)*100),0,(DP_TSML248+DP_TSML249)/(DP_TSML248+DP_TSML249+DP_TSML250+DP_TSML251+DP_TSML252)*100) -> 77.27272727 | F84: =IF(ISERROR((DP_TSML257+DP_TSML258)/(DP_TSML257+DP_TSML258+DP_TSML259+DP_TSML260+DP_TSML261)*100),0,(DP_TSML257+DP_TSML258)/(DP_TSML257+DP_TSML258+DP_TSML259+DP_TSML260+DP_TSML261)*100) -> 33.33333333 | G84: =IF(ISERROR((DP_TSML266+DP_TSML267)/(DP_TSML266+DP_TSML267+DP_TSML268+DP_TSML269+DP_TSML270)*100),0,(DP_TSML266+DP_TSML267)/(DP_TSML266+DP_TSML267+DP_TSML268+DP_TSML269+DP_TSML270)*100) -> 85.71428571 | H84: =IF(ISERROR((DP_TSML273+DP_TSML274)/(DP_TSML273+DP_TSML274+DP_TSML275+DP_TSML276+DP_TSML277)*100),0,(DP_TSML273+DP_TSML274)/(DP_TSML273+DP_TSML274+DP_TSML275+DP_TSML276+DP_TSML277)*100) -> 65 | I84: =IF(ISERROR((DP_TSML280+DP_TSML281)/(DP_TSML280+DP_TSML281+DP_TSML282+DP_TSML283+DP_TSML284)*100),0,(DP_TSML280+DP_TSML281)/(DP_TSML280+DP_TSML281+DP_TSML282+DP_TSML283+DP_TSML284)*100) -> 73.33333333
C86: * The option ‘Not applicable/ don’t know’ is only a specified response to TP05, TP06, TP07, TP08, TP11 and TP12.

Sheet Sect 5 - TSMs reported for LCHO
B3: Section 5 - TSMs reported for low cost home ownership (LCHO) stock
B5: This section allows for the collection of the TSMs relating to LCHO dwelling stock and the information providing the context for these measures.
B7: Complaints TSMs
B9: Stage one complaints
B10: Q1 | C10: Please report the number of stage one complaints and the proportion of these you responded to within the Housing Ombudsman’s Complaint Handling Code timescales as defined in the TSM technical requirements
C11: Please refer to the guidance document for more details on the correct way to report the numerator and denominator.
F13: Calculation (sum (numerator/ denominator) * 1000) | G13: Numerator Number of stage one complaints made by tenants in the relevant stock type during the reporting year | H13: Denominator Number of dwelling units owned of the relevant stock type at year end
B14: CH01 | C14: Number of stage one complaints made by tenants in the relevant stock type during the reporting year per 1,000 homes. | F14: =IF(ISERROR((DP_TSML288/DP_TSML289)*1000),0,(DP_TSML288/DP_TSML289)*1000) -> 100 | G14: 12 | H14: 120
F15: Calculation (sum (numerator/ denominator) * 100) | G15: Numerator Number of stage one complaints made by tenants during the reporting year for the relevant stock type that were responded to within the Housing Ombudsman’s Complaint Handling Code timescale | H15: Denominator Number of stage one complaints made by tenants in the relevant stock type during the reporting year
B16: CH02 | C16: Proportion of stage one complaints responded to within the Housing Ombudsman’s Complaint Handling Code timescales. | F16: =IF(ISERROR((DP_TSML291/DP_TSML292)*100),0,(DP_TSML291/DP_TSML292)*100) -> 83.33333333 | G16: 10 | H16: 12
B19: Q2a | C19: Out of the number of stage one complaints made by tenants during the reporting year, what number were responded to within Complaint Handling Code timescales – | G19: This question is optional.
C20: without the use of extensions permitted in the Code.
B22: Q2b | C22: Out of the number of stage one complaints made by tenants during the reporting year, what number were responded to within Complaint Handling Code timescales – | G22: This question is optional.
C23: with the use of extensions permitted in the Code.
B26: Stage two complaints
B27: Q3 | C27: Please report the number of stage two complaints and the proportion of these you responded to within the Housing Ombudsman’s Complaint Handling Code timescales as defined in TSM technical requirements
C28: Please refer to the guidance document for more details on the correct way to report the numerator and denominator.
F30: Calculation (sum (numerator/ denominator) * 1000) | G30: Numerator Number of stage two complaints made by tenants in the relevant stock type during the reporting year | H30: Denominator Number of dwelling units owned of the relevant stock type at year end
B31: CH01 | C31: Number of stage two complaints made by tenants in the relevant stock type during the reporting year per 1,000 homes. | F31: =IF(ISERROR((DP_TSML296/DP_TSML297)*1000),0,(DP_TSML296/DP_TSML297)*1000) -> 58.33333333 | G31: 7 | H31: 120
F32: Calculation (sum (numerator/ denominator) * 100) | G32: Numerator Number of stage two complaints made by tenants during the reporting year for the relevant stock type that were responded to within the Housing Ombudsman’s Complaint Handling Code timescale | H32: Denominator Number of stage two complaints made by tenants in the relevant stock type during the reporting year
B33: CH02 | C33: Proportion of stage two complaints responded to within the Housing Ombudsman’s Complaint Handling Code timescales. | F33: =IF(ISERROR((DP_TSML299/DP_TSML300)*100),0,(DP_TSML299/DP_TSML300)*100) -> 71.42857143 | G33: 5 | H33: 7
B36: Q4a | C36: Out of the number of stage two complaints made by tenants during the reporting year, what number were responded to within Complaint Handling Code timescales – | D36: Number | E36: This question is optional. | G36: This question is optional.
C37: without the use of extensions permitted in the Code.
B39: Q4b | C39: Out of the number of stage two complaints made by tenants during the reporting year, what number were responded to within Complaint Handling Code timescales – | D39: Number | E39: This question is optional. | G39: This question is optional.
C40: with the use of extensions permitted in the Code.
B43: CH02 Information
B45: Q5a | C45: Has CH02 been calculated using the standard maximum timescales as set out in the Complaint Handling Code for each response stage? | F45: Yes | G45: This question is optional.
B47: Q5b | C47: If ‘No’ what were the maximum timescales used? | I47: This question is optional
B52: Tenant perception measures
B55: Q6 | C55: For each tenant perception measure (TP01 and TP05 - TP12) you must report the number of survey responses used to calculate it as defined in TSM technical requirements.
C56: For TP09 and TP10 providers must report the number of respondents who responded ‘Yes’ and the number of respondents who responded ‘No’ to the filter question relevant to that perception measure.
D58: TP01 | E58: TP02 | F58: TP03 | G58: TP04 | H58: TP05 | I58: TP06
D59: Taking everything into account, how satisfied or dissatisfied are you with the service provided by [your landlord]? | E59: Not applicable to LCHO stock | F59: Not applicable to LCHO stock | G59: Not applicable to LCHO stock | H59: Thinking about the condition of the property or building you live in, how satisfied or dissatisfied are you that [your landlord] provides a home that is safe? | I59: How satisfied or dissatisfied are you that [your landlord] listens to your views and acts upon them?
C60: Number of respondents who responded ‘Yes’ to the filter question relevant to the perception measure.
C61: Number of respondents who responded ‘No’ to the filter question relevant to the perception measure.
C63: Very satisfied​ | D63: 8 | H63: 16 | I63: 8
C64: Fairly satisfied​ | D64: 11 | H64: 13 | I64: 6
C65: Neither satisfied nor dissatisfied | D65: 8 | H65: 8 | I65: 8
C66: Fairly dissatisfied​ | D66: 8 | H66: 7 | I66: 14
C67: Very dissatisfied​ | D67: 19 | H67: 10 | I67: 16
C68: Not applicable/ don’t know* | H68: 0 | I68: 2
C69: Calculated TSM: Proportion of respondents who report that they are satisfied | D69: =IF(ISERROR((DP_TSML305+DP_TSML306)/(DP_TSML305+DP_TSML306+DP_TSML307+DP_TSML308+DP_TSML309)*100),0,(DP_TSML305+DP_TSML306)/(DP_TSML305+DP_TSML306+DP_TSML307+DP_TSML308+DP_TSML309)*100) -> 35.18518519 | H69: =IF(ISERROR((DP_TSML312+DP_TSML313)/(DP_TSML312+DP_TSML313+DP_TSML314+DP_TSML315+DP_TSML316)*100),0,(DP_TSML312+DP_TSML313)/(DP_TSML312+DP_TSML313+DP_TSML314+DP_TSML315+DP_TSML316)*100) -> 53.7037037 | I69: =IF(ISERROR((DP_TSML319+DP_TSML320)/(DP_TSML319+DP_TSML320+DP_TSML321+DP_TSML322+DP_TSML323)*100),0,(DP_TSML319+DP_TSML320)/(DP_TSML319+DP_TSML320+DP_TSML321+DP_TSML322+DP_TSML323)*100) -> 26.92307692
C71: * The option ‘Not applicable/ don’t know’ is only a specified response to TP05, TP06, TP07, TP08, TP11 and TP12. However, for other tenant perception measures you may have unprompted ‘not known’ or ‘not applicable’ responses (e.g. where a respondent does not respond to any of the accepted responses) and you should record these here.
D73: TP07 | E73: TP08 | F73: TP09 | G73: TP10 | H73: TP11 | I73: TP12
D74: How satisfied or dissatisfied are you that [your landlord] keeps you informed about things that matter to you? | E74: To what extent do you agree or disagree with the following “[my landlord] treats me fairly and with respect”? | F74: How satisfied or dissatisfied are you with [your landlord]’s approach to complaints handling? | G74: How satisfied or dissatisfied are you that [your landlord] keeps these communal areas clean and well maintained? | H74: How satisfied or dissatisfied are you that [your landlord] makes a positive contribution to your neighbourhood? | I74: How satisfied or dissatisfied are you with [your landlord]’s approach to handling anti-social behaviour?
C75: Number of respondents who responded ‘Yes’ to the filter question relevant to the perception measure. | F75: 32 | G75: 28
C76: Number of respondents who responded ‘No’ to the filter question relevant to the perception measure. | F76: 22 | G76: 22
C78: Very satisfied​ (or Strongly agree for TP08) | D78: 6 | E78: 10 | F78: 0 | G78: 2 | H78: 3 | I78: 2
C79: Fairly satisfied​ (or Agree for TP08) | D79: 9 | E79: 7 | F79: 4 | G79: 4 | H79: 5 | I79: 4
C80: Neither satisfied nor dissatisfied (or Neither agree nor disagree for TP08) | D80: 9 | E80: 18 | F80: 5 | G80: 5 | H80: 17 | I80: 13
C81: Fairly dissatisfied​ (or Disagree for TP08) | D81: 10 | E81: 6 | F81: 6 | G81: 4 | H81: 6 | I81: 5
C82: Very dissatisfied​ (or Strongly disagree for TP08) | D82: 17 | E82: 10 | F82: 17 | G82: 13 | H82: 13 | I82: 8
C83: Not applicable/ don’t know* | D83: 3 | E83: 3 | H83: 10 | I83: 22
C84: Calculated TSM: Proportion of respondents who report that they are satisfied (or that they agree TP08) | D84: =IF(ISERROR((DP_TSML326+DP_TSML327)/(DP_TSML326+DP_TSML327+DP_TSML328+DP_TSML329+DP_TSML330)*100),0,(DP_TSML326+DP_TSML327)/(DP_TSML326+DP_TSML327+DP_TSML328+DP_TSML329+DP_TSML330)*100) -> 29.41176471 | E84: =IF(ISERROR((DP_TSML333+DP_TSML334)/(DP_TSML333+DP_TSML334+DP_TSML335+DP_TSML336+DP_TSML337)*100),0,(DP_TSML333+DP_TSML334)/(DP_TSML333+DP_TSML334+DP_TSML335+DP_TSML336+DP_TSML337)*100) -> 33.33333333 | F84: =IF(ISERROR((DP_TSML342+DP_TSML343)/(DP_TSML342+DP_TSML343+DP_TSML344+DP_TSML345+DP_TSML346)*100),0,(DP_TSML342+DP_TSML343)/(DP_TSML342+DP_TSML343+DP_TSML344+DP_TSML345+DP_TSML346)*100) -> 12.5 | G84: =IF(ISERROR((DP_TSML351+DP_TSML352)/(DP_TSML351+DP_TSML352+DP_TSML353+DP_TSML354+DP_TSML355)*100),0,(DP_TSML351+DP_TSML352)/(DP_TSML351+DP_TSML352+DP_TSML353+DP_TSML354+DP_TSML355)*100) -> 21.42857143 | H84: =IF(ISERROR((DP_TSML358+DP_TSML359)/(DP_TSML358+DP_TSML359+DP_TSML360+DP_TSML361+DP_TSML362)*100),0,(DP_TSML358+DP_TSML359)/(DP_TSML358+DP_TSML359+DP_TSML360+DP_TSML361+DP_TSML362)*100) -> 18.18181818 | I84: =IF(ISERROR((DP_TSML365+DP_TSML366)/(DP_TSML365+DP_TSML366+DP_TSML367+DP_TSML368+DP_TSML369)*100),0,(DP_TSML365+DP_TSML366)/(DP_TSML365+DP_TSML366+DP_TSML367+DP_TSML368+DP_TSML369)*100) -> 18.75
C86: * The option ‘Not applicable/ don’t know’ is only a specified response to TP05, TP06, TP07, TP08, TP11 and TP12.

Sheet Sect 6 - TSMs reported Combined
B3: Section 6 - TSMs reported on a combined stock basis (LCRA and LCHO combined)
B5: This section allows for the collection of the TSMs relating to a combined LCRA and LCHO dwelling stock basis and the information providing the context for these measures.
B7: Complaints TSMs
B9: Stage one complaints
B10: Q1 | C10: Please report the number of stage one complaints and the proportion of these you responded to within the Housing Ombudsman’s Complaint Handling Code timescales as defined in the TSM technical requirements
C11: Please refer to the guidance document for more details on the correct way to report the numerator and denominator.
F13: Calculation (sum (numerator/ denominator) * 1000) | G13: Numerator Number of stage one complaints made by tenants in the relevant stock type during the reporting year | H13: Denominator Number of dwelling units owned of the relevant stock type at year end
B14: CH01 | C14: Number of stage one complaints made by tenants in the relevant stock type during the reporting year per 1,000 homes. | F14: =IF(ISERROR((DP_TSML373/DP_TSML374)*1000),0,(DP_TSML373/DP_TSML374)*1000) -> 0
F15: Calculation (sum (numerator/ denominator) * 100) | G15: Numerator Number of stage one complaints made by tenants during the reporting year for the relevant stock type that were responded to within the Housing Ombudsman’s Complaint Handling Code timescale | H15: Denominator Number of stage one complaints made by tenants in the relevant stock type during the reporting year
B16: CH02 | C16: Proportion of stage one complaints responded to within the Housing Ombudsman’s Complaint Handling Code timescales. | F16: =IF(ISERROR((DP_TSML376/DP_TSML377)*100),0,(DP_TSML376/DP_TSML377)*100) -> 0
B19: Q2a | C19: Out of the number of stage one complaints made by tenants during the reporting year, what number were responded to within Complaint Handling Code timescales – | G19: This question is optional.
C20: without the use of extensions permitted in the Code.
B22: Q2b | C22: Out of the number of stage one complaints made by tenants during the reporting year, what number were responded to within Complaint Handling Code timescales – | G22: This question is optional.
C23: with the use of extensions permitted in the Code.
B26: Stage two complaints
B27: Q3 | C27: Please report the number of stage two complaints and the proportion of these you responded to within the Housing Ombudsman’s Complaint Handling Code timescales as defined in TSM technical requirements
C28: Please refer to the guidance document for more details on the correct way to report the numerator and denominator.
F30: Calculation (sum (numerator/ denominator) * 1000) | G30: Numerator Number of stage two complaints made by tenants in the relevant stock type during the reporting year | H30: Denominator Number of dwelling units owned of the relevant stock type at year end
B31: CH01 | C31: Number of stage two complaints made by tenants in the relevant stock type during the reporting year per 1,000 homes. | F31: =IF(ISERROR((DP_TSML381/DP_TSML382)*1000),0,(DP_TSML381/DP_TSML382)*1000) -> 0
F32: Calculation (sum (numerator/ denominator) * 100) | G32: Numerator Number of stage two complaints made by tenants during the reporting year for the relevant stock type that were responded to within the Housing Ombudsman’s Complaint Handling Code timescale | H32: Denominator Number of stage two complaints made by tenants in the relevant stock type during the reporting year
B33: CH02 | C33: Proportion of stage two complaints responded to within the Housing Ombudsman’s Complaint Handling Code timescales. | F33: =IF(ISERROR((DP_TSML384/DP_TSML385)*100),0,(DP_TSML384/DP_TSML385)*100) -> 0
B36: Q4a | C36: Out of the number of stage two complaints made by tenants during the reporting year, what number were responded to within Complaint Handling Code timescales – | D36: Number | E36: This question is optional. | G36: This question is optional.
C37: without the use of extensions permitted in the Code.
B39: Q4b | C39: Out of the number of stage two complaints made by tenants during the reporting year, what number were responded to within Complaint Handling Code timescales – | D39: Number | E39: This question is optional. | G39: This question is optional.
C40: with the use of extensions permitted in the Code.
B43: CH02 Information
B45: Q5a | C45: Has CH02 been calculated using the standard maximum timescales as set out in the Complaint Handling Code for each response stage? | G45: This question is optional.
B47: Q5b | C47: If ‘No’ what were the maximum timescales used? | I47: This question is optional
B52: Tenant perception measures
B55: Q6 | C55: For each tenant perception measure (TP01-TP12) you must report the number of survey responses used to calculate it as defined in TSM technical requirements.
C56: For TP02, TP03, TP09 and TP10 providers must report the number of respondents who responded ‘Yes’ and the number of respondents who responded ‘No’ to the filter question relevant to that perception measure.
C57: Providers must report TP02 to TP04 on the basis of LCRA stock only and all other tenant perception measures on a combined stock basis.
E58: LCRA ONLY | F58: LCRA ONLY | G58: LCRA ONLY
D59: TP01 | E59: TP02 | F59: TP03 | G59: TP04 | H59: TP05 | I59: TP06
D60: Taking everything into account, how satisfied or dissatisfied are you with the service provided by [your landlord]? | E60: How satisfied or dissatisfied are you with the overall repairs service from [your landlord] over the last 12 months? | F60: How satisfied or dissatisfied are you with the time taken to complete your most recent repair after you reported it? | G60: How satisfied or dissatisfied are you that [your landlord] provides a home that is well maintained? | H60: Thinking about the condition of the property or building you live in, how satisfied or dissatisfied are you that [your landlord] provides a home that is safe? | I60: How satisfied or dissatisfied are you that [your landlord] listens to your views and acts upon them?
C61: Number of respondents who responded ‘Yes’ to the filter question relevant to the perception measure.
C62: Number of respondents who responded ‘No’ to the filter question relevant to the perception measure.
C64: Very satisfied​
C65: Fairly satisfied​
C66: Neither satisfied nor dissatisfied
C67: Fairly dissatisfied​
C68: Very dissatisfied​
C69: Not applicable/ don’t know*
C70: Calculated TSM: Proportion of respondents who report that they are satisfied | D70: =IF(ISERROR((DP_TSML390+DP_TSML391)/(DP_TSML390+DP_TSML391+DP_TSML392+DP_TSML393+DP_TSML394)*100),0,(DP_TSML390+DP_TSML391)/(DP_TSML390+DP_TSML391+DP_TSML392+DP_TSML393+DP_TSML394)*100) -> 0 | E70: =IF(ISERROR((DP_TSML399+DP_TSML400)/(DP_TSML399+DP_TSML400+DP_TSML401+DP_TSML402+DP_TSML403)*100),0,(DP_TSML399+DP_TSML400)/(DP_TSML399+DP_TSML400+DP_TSML401+DP_TSML402+DP_TSML403)*100) -> 0 | F70: =IF(ISERROR((DP_TSML408+DP_TSML409)/(DP_TSML408+DP_TSML409+DP_TSML410+DP_TSML411+DP_TSML412)*100),0,(DP_TSML408+DP_TSML409)/(DP_TSML408+DP_TSML409+DP_TSML410+DP_TSML411+DP_TSML412)*100) -> 0 | G70: =IF(ISERROR((DP_TSML415+DP_TSML416)/(DP_TSML415+DP_TSML416+DP_TSML417+DP_TSML418+DP_TSML419)*100),0,(DP_TSML415+DP_TSML416)/(DP_TSML415+DP_TSML416+DP_TSML417+DP_TSML418+DP_TSML419)*100) -> 0 | H70: =IF(ISERROR((DP_TSML422+DP_TSML423)/(DP_TSML422+DP_TSML423+DP_TSML424+DP_TSML425+DP_TSML426)*100),0,(DP_TSML422+DP_TSML423)/(DP_TSML422+DP_TSML423+DP_TSML424+DP_TSML425+DP_TSML426)*100) -> 0 | I70: =IF(ISERROR((DP_TSML429+DP_TSML430)/(DP_TSML429+DP_TSML430+DP_TSML431+DP_TSML432+DP_TSML433)*100),0,(DP_TSML429+DP_TSML430)/(DP_TSML429+DP_TSML430+DP_TSML431+DP_TSML432+DP_TSML433)*100) -> 0
C72: * The option ‘Not applicable/ don’t know’ is only a specified response to TP05, TP06, TP07, TP08, TP11 and TP12.
D74: TP07 | E74: TP08 | F74: TP09 | G74: TP10 | H74: TP11 | I74: TP12
D75: How satisfied or dissatisfied are you that [your landlord] keeps you informed about things that matter to you? | E75: To what extent do you agree or disagree with the following “[my landlord] treats me fairly and with respect”? | F75: How satisfied or dissatisfied are you with [your landlord]’s approach to complaints handling? | G75: How satisfied or dissatisfied are you that [your landlord] keeps these communal areas clean and well maintained? | H75: How satisfied or dissatisfied are you that [your landlord] makes a positive contribution to your neighbourhood? | I75: How satisfied or dissatisfied are you with [your landlord]’s approach to handling anti-social behaviour?
C76: Number of respondents who responded ‘Yes’ to the filter question relevant to the perception measure.
C77: Number of respondents who responded ‘No’ to the filter question relevant to the perception measure.
C79: Very satisfied​ (or Strongly agree for TP08)
C80: Fairly satisfied​ (or Agree for TP08)
C81: Neither satisfied nor dissatisfied (or Neither agree nor disagree for TP08)
C82: Fairly dissatisfied​ (or Disagree for TP08)
C83: Very dissatisfied​ (or Strongly disagree for TP08)
C84: Not applicable/ don’t know*
C85: Calculated TSM: Proportion of respondents who report that they are satisfied (or that they agree TP08) | D85: =IF(ISERROR((DP_TSML436+DP_TSML437)/(DP_TSML436+DP_TSML437+DP_TSML438+DP_TSML439+DP_TSML440)*100),0,(DP_TSML436+DP_TSML437)/(DP_TSML436+DP_TSML437+DP_TSML438+DP_TSML439+DP_TSML440)*100) -> 0 | E85: =IF(ISERROR((DP_TSML443+DP_TSML444)/(DP_TSML443+DP_TSML444+DP_TSML445+DP_TSML446+DP_TSML447)*100),0,(DP_TSML443+DP_TSML444)/(DP_TSML443+DP_TSML444+DP_TSML445+DP_TSML446+DP_TSML447)*100) -> 0 | F85: =IF(ISERROR((DP_TSML452+DP_TSML453)/(DP_TSML452+DP_TSML453+DP_TSML454+DP_TSML455+DP_TSML456)*100),0,(DP_TSML452+DP_TSML453)/(DP_TSML452+DP_TSML453+DP_TSML454+DP_TSML455+DP_TSML456)*100) -> 0 | G85: =IF(ISERROR((DP_TSML461+DP_TSML462)/(DP_TSML461+DP_TSML462+DP_TSML463+DP_TSML464+DP_TSML465)*100),0,(DP_TSML461+DP_TSML462)/(DP_TSML461+DP_TSML462+DP_TSML463+DP_TSML464+DP_TSML465)*100) -> 0 | H85: =IF(ISERROR((DP_TSML468+DP_TSML469)/(DP_TSML468+DP_TSML469+DP_TSML470+DP_TSML471+DP_TSML472)*100),0,(DP_TSML468+DP_TSML469)/(DP_TSML468+DP_TSML469+DP_TSML470+DP_TSML471+DP_TSML472)*100) -> 0 | I85: =IF(ISERROR((DP_TSML475+DP_TSML476)/(DP_TSML475+DP_TSML476+DP_TSML477+DP_TSML478+DP_TSML479)*100),0,(DP_TSML475+DP_TSML476)/(DP_TSML475+DP_TSML476+DP_TSML477+DP_TSML478+DP_TSML479)*100) -> 0
C87: * The option ‘Not applicable/ don’t know’ is only a specified response to TP05, TP06, TP07, TP08, TP11 and TP12.

Sheet Validations
A1: Workbook Validations
A2: These are the validations which are active for the current workbook, and their current states. Some validations may not execute until the workbook is uploaded to NROSH+
A3: Required fields are marked with * - all other fields are optional. Click on the column header for more information
B5: Validation Reference* | C5: Short text | D5: Description | E5: Help Text | F5: Type* | G5: Category | H5: Formula*
B6: V_TSM0014 | C6: Sect 1b Q7 Contract organisations | D6: If Q7 is "Yes", then please complete Sect 1b Q7a. If the response to Q7 is "No", then leave Q7a blank. | F6: Hard | H6: =OR(AND(ISBLANK('Sect 1b - Background'!DP_TSML047)=TRUE,ISBLANK('Sect 1b - Background'!DP_TSML052)=TRUE,ISBLANK('Sect 1b - Background'!DP_TSML053)=TRUE),AND(ISBLANK('Sect 1b - Background'!DP_TSML047)=FALSE,'Sect 1b - Background'!DP_TSML052="No",ISBLANK('Sect 1b - Background'!DP_TSML053)=TRUE),AND(ISBLANK('Sect 1b - Background'!DP_TSML047)=FALSE,'Sect 1b - Background'!DP_TSML052="Yes",ISBLANK('Sect 1b - Background'!DP_TSML053)=FALSE)) -> TRUE
B7: V_TSM0015 | C7: Sect 1b Q8 Incentive | D7: If Q8 is 'Yes', then please complete Sect 1b Q8a. If the response to Q8 is 'No', then leave Q8a blank. | F7: Hard | H7: =OR(AND(ISBLANK('Sect 1b - Background'!DP_TSML047)=TRUE,ISBLANK('Sect 1b - Background'!DP_TSML054)=TRUE,ISBLANK('Sect 1b - Background'!DP_TSML055)=TRUE),AND(ISBLANK('Sect 1b - Background'!DP_TSML047)=FALSE,'Sect 1b - Background'!DP_TSML054="No",ISBLANK('Sect 1b - Background'!DP_TSML055)=TRUE),AND(ISBLANK('Sect 1b - Background'!DP_TSML047)=FALSE,'Sect 1b - Background'!DP_TSML054="Yes",ISBLANK('Sect 1b - Background'!DP_TSML055)=FALSE)) -> TRUE
B8: V_TSM0016 | C8: Sect 1b Q9 Confirm upload of supporting document | D8: If the response to Sect 1b Q9 is 'No', then please complete Sect 1b Q9a. If the response to Q9 is 'Yes', then leave Q9a blank. | F8: Hard | H8: =OR(AND(ISBLANK('Sect 1b - Background'!DP_TSML047)=TRUE,ISBLANK('Sect 1b - Background'!DP_TSML056)=TRUE,ISBLANK('Sect 1b - Background'!DP_TSML057)=TRUE),AND(ISBLANK('Sect 1b - Background'!DP_TSML047)=FALSE,'Sect 1b - Background'!DP_TSML056="Yes",ISBLANK('Sect 1b - Background'!DP_TSML057)=TRUE),AND(ISBLANK('Sect 1b - Background'!DP_TSML047)=FALSE,'Sect 1b - Background'!DP_TSML056="No",ISBLANK('Sect 1b - Background'!DP_TSML057)=FALSE)) -> TRUE
B9: V_TSM0017 | C9: Sect 1b Q13 Details of other methods | D9: If the response to Sect 1b Q13 for 'All other methods' is greater than zero, then please provide details in Sect 1b Q13a. | F9: Hard | H9: =OR(AND('Sect 1b - Background'!DP_TSML066>0,ISBLANK('Sect 1b - Background'!DP_TSML068)=FALSE),AND('Sect 1b - Background'!DP_TSML066=0,ISBLANK('Sect 1b - Background'!DP_TSML068)=TRUE)) -> TRUE
B10: V_TSM0020 | C10: Sect 1b Q10 and Q11 | D10: Q11 should not be greater than Q10 | F10: Hard | H10: =OR(AND(ISBLANK('Sect 1b - Background'!DP_TSML047)=FALSE,'Sect 1b - Background'!DP_TSML059<='Sect 1b - Background'!DP_TSML058),ISBLANK('Sect 1b - Background'!DP_TSML047)=TRUE) -> TRUE
B11: V_TSM0026 | C11: Sect 3 Q3 NM01 (1) | D11: Please check that you have entered the numerator and denominator for this Q3 L1 correctly, and that the value for NM01(1) as reported in section 2 is correct. | F11: Soft | H11: =AND('Sect 3 - TSMs reported by all'!DP_TSML157>='Sect 2 - Published TSMs'!DP_TSML092-1,'Sect 3 - TSMs reported by all'!DP_TSML157<='Sect 2 - Published TSMs'!DP_TSML092+1) -> TRUE
B12: V_TSM0027 | C12: Sect 3 Q3 NM01 (2) | D12: Please check that you have entered the numerator and denominator for this Q3 L2 correctly, and that the value for NM01 (2) as reported in section 2 is correct. | F12: Soft | H12: =AND('Sect 3 - TSMs reported by all'!DP_TSML160>='Sect 2 - Published TSMs'!DP_TSML093-1,'Sect 3 - TSMs reported by all'!DP_TSML160<='Sect 2 - Published TSMs'!DP_TSML093+1) -> TRUE
B13: V_TSM0028 | C13: Sect 3 Q4 RP01 | D13: Please check that you have entered the numerator and denominator for this Q4 L1 correctly, and that the value for RP01 as reported in section 2 is correct. | F13: Soft | H13: =AND('Sect 3 - TSMs reported by all'!DP_TSML163>='Sect 2 - Published TSMs'!DP_TSML094-1,'Sect 3 - TSMs reported by all'!DP_TSML163<='Sect 2 - Published TSMs'!DP_TSML094+1) -> TRUE
B14: V_TSM0029 | C14: Sect 3 Q4 RP02 (pt1) | D14: Please check that you have entered the numerator and denominator for this Q4 L2 correctly, and that the value for RP02(1) as reported in section 2 is correct. | F14: Soft | H14: =AND('Sect 3 - TSMs reported by all'!DP_TSML166>='Sect 2 - Published TSMs'!DP_TSML095-1,'Sect 3 - TSMs reported by all'!DP_TSML166<='Sect 2 - Published TSMs'!DP_TSML095+1) -> TRUE
B15: V_TSM0030 | C15: Sect 3 Q4 RP02 (pt2) | D15: Please check that you have entered the numerator and denominator for this Q4 L3 correctly, and that the value for RP02(2) as reported in section 2 is correct. | F15: Soft | H15: =AND('Sect 3 - TSMs reported by all'!DP_TSML169>='Sect 2 - Published TSMs'!DP_TSML096-1,'Sect 3 - TSMs reported by all'!DP_TSML169<='Sect 2 - Published TSMs'!DP_TSML096+1) -> TRUE
B16: V_TSM0031 | C16: Sect 3 Q5a | D16: Sect 3 Q5a Please check that you have responded to Q5a in working DAYS. | F16: Soft | H16: ='Sect 3 - TSMs reported by all'!DP_TSML172<=60 -> FALSE
B17: V_TSM0032 | C17: Sect 3 Q5b | D17: Sect 3 Q5b Please check that you have reported the target timescale for emergency repairs in hours. | F17: Soft | H17: =OR(ISBLANK('Sect 3 - TSMs reported by all'!DP_TSML174)=TRUE,AND('Sect 3 - TSMs reported by all'!DP_TSML174>=2,'Sect 3 - TSMs reported by all'!DP_TSML174<=48)) -> FALSE
B18: V_TSM0033 | C18: Sect 4 Q1 CH01 (1) | D18: Please check that you have entered the numerator and denominator for this Q1 L1 correctly, and that the value for CH01 (1) as reported in section 2 column 1 is correct. | F18: Soft | H18: =AND('Sect 4 - TSMs reported for LCRA'!DP_TSML177>='Sect 2 - Published TSMs'!DP_TSML097-1,'Sect 4 - TSMs reported for LCRA'!DP_TSML177<='Sect 2 - Published TSMs'!DP_TSML097+1) -> TRUE
B19: V_TSM0034 | C19: Sect 4 Q1 CH02 (1) | D19: Please check that you have entered the numerator and denominator for this Q1 L2 correctly, and that the value for CH02 (stg1) as reported in section 2 column 1 is correct. | F19: Soft | H19: =AND('Sect 4 - TSMs reported for LCRA'!DP_TSML180>='Sect 2 - Published TSMs'!DP_TSML103-1,'Sect 4 - TSMs reported for LCRA'!DP_TSML180<='Sect 2 - Published TSMs'!DP_TSML103+1) -> TRUE
B20: V_TSM0037 | C20: Sect 4 Q3 CH01 (2) | D20: Please check that you have entered the numerator and denominator for this Q3 L1 correctly, and that the value for CH01 (2) as reported in section 2 column 1 is correct. | F20: Soft | H20: =AND('Sect 4 - TSMs reported for LCRA'!DP_TSML185>='Sect 2 - Published TSMs'!DP_TSML100-1,'Sect 4 - TSMs reported for LCRA'!DP_TSML185<='Sect 2 - Published TSMs'!DP_TSML100+1) -> TRUE
B21: V_TSM0038 | C21: Sect 4 Q3 CH02 (2) | D21: Please check that you have entered the numerator and denominator for this Q3 L2 correctly, and that the value for CH02 (stg1) as reported in section 2 column 1 is correct. | F21: Soft | H21: =AND('Sect 4 - TSMs reported for LCRA'!DP_TSML188>='Sect 2 - Published TSMs'!DP_TSML106-1,'Sect 4 - TSMs reported for LCRA'!DP_TSML188<='Sect 2 - Published TSMs'!DP_TSML106+1) -> TRUE
B22: V_TSM0112 | C22: Sect 3 Q2 BS01 | D22: Please check that you have entered the numerator and denominator for this Q2 L1 correctly. | F22: Hard | H22: ='Sect 3 - TSMs reported by all'!DP_TSML143<='Sect 3 - TSMs reported by all'!DP_TSML144 -> TRUE
B23: V_TSM0113 | C23: Sect 3 Q2 BS02 | D23: Please check that you have entered the numerator and denominator for this Q2 L2 correctly. | F23: Hard | H23: ='Sect 3 - TSMs reported by all'!DP_TSML146<='Sect 3 - TSMs reported by all'!DP_TSML147 -> TRUE
B24: V_TSM0114 | C24: Sect 3 Q2 BS03 | D24: Please check that you have entered the numerator and denominator for this Q2 L3 correctly. | F24: Hard | H24: ='Sect 3 - TSMs reported by all'!DP_TSML149<='Sect 3 - TSMs reported by all'!DP_TSML150 -> TRUE
B25: V_TSM0115 | C25: Sect 3 Q2 BS04 | D25: Please check that you have entered the numerator and denominator for this Q2 L4 correctly. | F25: Hard | H25: ='Sect 3 - TSMs reported by all'!DP_TSML152<='Sect 3 - TSMs reported by all'!DP_TSML153 -> TRUE
B26: V_TSM0116 | C26: Sect 3 Q2 BS05 | D26: Please check that you have entered the numerator and denominator for this Q2 L5 correctly. | F26: Hard | H26: ='Sect 3 - TSMs reported by all'!DP_TSML155<='Sect 3 - TSMs reported by all'!DP_TSML156 -> TRUE
B27: V_TSM0117 | C27: Sect 3 Q3 NM01 (1) | D27: Please check that you have entered the numerator and denominator for this Q3 L1 correctly. | F27: Hard | H27: ='Sect 3 - TSMs reported by all'!DP_TSML158<='Sect 3 - TSMs reported by all'!DP_TSML159 -> TRUE
B28: V_TSM0118 | C28: Sect 3 Q2 NM01 (2) | D28: Please check that you have entered the numerator and denominator for this Q3 L2 correctly. | F28: Hard | H28: ='Sect 3 - TSMs reported by all'!DP_TSML161<='Sect 3 - TSMs reported by all'!DP_TSML162 -> TRUE
B29: V_TSM0119 | C29: Sect 3 Q3 NM01 (2) | D29: Please check that you have entered the numerators in Q3 L1 and Q3 L2 correctly. We would anticipate the numerator in Q3 L2 to be less than or equal to the numerator in Q3 L1. | F29: Soft | H29: ='Sect 3 - TSMs reported by all'!DP_TSML161<='Sect 3 - TSMs reported by all'!DP_TSML158 -> TRUE
B30: V_TSM0120 | C30: Sect 3 Q4 RP01 | D30: Please check that you have entered the numerator and denominator for this Q4 L1 correctly. The numerator cannot be greater than the denominator. | F30: Hard | H30: ='Sect 3 - TSMs reported by all'!DP_TSML164<='Sect 3 - TSMs reported by all'!DP_TSML165 -> TRUE
B31: V_TSM0121 | C31: Sect 3 Q4 RP02(1) | D31: Please check that you have entered the numerator and denominator for this Q4 L2 correctly. The numerator cannot be greater than the denominator. | F31: Hard | H31: ='Sect 3 - TSMs reported by all'!DP_TSML167<='Sect 3 - TSMs reported by all'!DP_TSML168 -> TRUE
B32: V_TSM0122 | C32: Sect 3 Q4 RP02(2) | D32: Please check that you have entered the numerator and denominator for this Q4 L3 correctly. The numerator cannot be greater than the denominator. | F32: Hard | H32: ='Sect 3 - TSMs reported by all'!DP_TSML170<='Sect 3 - TSMs reported by all'!DP_TSML171 -> TRUE
B33: V_TSM0123 | C33: Sect 3 Q4 RP01 | D33: Please check the denominator reported for RP01. We would expect the RP01 denominator to be less than or equal to the number of dwellings owned (as reported in NM01(1)). | F33: Soft | H33: ='Sect 3 - TSMs reported by all'!DP_TSML165<='Sect 3 - TSMs reported by all'!DP_TSML159 -> TRUE
B34: V_TSM0020a | C34: Sect 3 Q2 BS01 | D34: Please check that you have entered the numerator and denominator for this Q2 L1 correctly, and that the value for BS01 as reported in section 2 is correct. Calculation should be within 1% of that reported for BS01 in section 2. | F34: Soft | H34: =AND('Sect 3 - TSMs reported by all'!DP_TSML142>='Sect 2 - Published TSMs'!DP_TSML087-1,'Sect 3 - TSMs reported by all'!DP_TSML142<='Sect 2 - Published TSMs'!DP_TSML087+1) -> TRUE
B35: V_TSM0021a | C35: Sect 3 Q2 BS02 | D35: Please check that you have entered the numerator and denominator for this Q2 L2 correctly, and that the value for BS02 as reported in section 2 is correct. Calculation should be within 1% of that reported for BS02 in section 2. | F35: Soft | H35: =AND('Sect 3 - TSMs reported by all'!DP_TSML145>='Sect 2 - Published TSMs'!DP_TSML088-1,'Sect 3 - TSMs reported by all'!DP_TSML145<='Sect 2 - Published TSMs'!DP_TSML088+1) -> TRUE
B36: V_TSM0022a | C36: Sect 3 Q2 BS03 | D36: Please check that you have entered the numerator and denominator for this Q2 L3 correctly, and that the value for BS03 as reported in section 2 is correct. Calculation should be within 1% of that reported for BS03 in section 2. | F36: Soft | H36: =AND('Sect 3 - TSMs reported by all'!DP_TSML148>='Sect 2 - Published TSMs'!DP_TSML089-1,'Sect 3 - TSMs reported by all'!DP_TSML148<='Sect 2 - Published TSMs'!DP_TSML089+1) -> TRUE
B37: V_TSM0023a | C37: Sect 3 Q2 BS04 | D37: Please check that you have entered the numerator and denominator for this Q2 L4 correctly, and that the value for BS04 as reported in section 2 is correct. Calculation should be within 1% of that reported for BS04 in section 2. | F37: Soft | H37: =AND('Sect 3 - TSMs reported by all'!DP_TSML151>='Sect 2 - Published TSMs'!DP_TSML090-1,'Sect 3 - TSMs reported by all'!DP_TSML151<='Sect 2 - Published TSMs'!DP_TSML090+1) -> TRUE
B38: V_TSM0024a | C38: Sect 3 Q2 BS05 | D38: Please check that you have entered the numerator and denominator for this Q2 L5 correctly, and that the value for BS05 as reported in section 2 is correct. Calculation should be within 1% of that reported for BS05 in section 2. | F38: Soft | H38: =AND('Sect 3 - TSMs reported by all'!DP_TSML154>='Sect 2 - Published TSMs'!DP_TSML091-1,'Sect 3 - TSMs reported by all'!DP_TSML154<='Sect 2 - Published TSMs'!DP_TSML091+1) -> TRUE
B39: V_TSM0129 | C39: Sect 1a Q1L1 and Q1L3 | D39: If your response to Q1L1 is "Yes", then the response to Q1L3 cannot also be "Yes" | F39: Hard | H39: =OR(AND('Sect 1a - Background'!DP_TSML001="No",'Sect 1a - Background'!DP_TSML003="No"),AND('Sect 1a - Background'!DP_TSML001="Yes",'Sect 1a - Background'!DP_TSML003="No"),AND('Sect 1a - Background'!DP_TSML001="No",'Sect 1a - Background'!DP_TSML003="Yes"),AND(ISBLANK('Sect 1a - Background'!DP_TSML001)=FALSE,ISBLANK('Sect 1a - Background'!DP_TSML003)=TRUE)) -> TRUE
B40: V_TSM0130 | C40: Sect 1a Q1L2 and Q1L3 | D40: If your response to Q1L2 is "Yes", then the response to Q1L3 cannot also be "Yes" | F40: Hard | H40: =OR(AND('Sect 1a - Background'!DP_TSML002="No",'Sect 1a - Background'!DP_TSML003="No"),AND('Sect 1a - Background'!DP_TSML002="Yes",'Sect 1a - Background'!DP_TSML003="No"),AND('Sect 1a - Background'!DP_TSML002="No",'Sect 1a - Background'!DP_TSML003="Yes"),AND(ISBLANK('Sect 1a - Background'!DP_TSML002)=FALSE,ISBLANK('Sect 1a - Background'!DP_TSML003)=TRUE)) -> TRUE
B41: V_TSM0132 | C41: Sect 1a Q1L1 and Q2 (Sect 1a + Sect 1b) | D41: There is a mismatch between your answers in Section 1a Q1 and Q2 in Sections 1a and 1b. The responses to Q2 should only be "LCRA - section 4" if your response to Section 1a Q1L1 is "Yes". If your response to Section 1a Q1L1 is "No", then the responses to Q2 cannot be "LCRA - section 4". | F41: Hard | H41: =OR(AND('Sect 1a - Background'!DP_TSML001="Yes",OR('Sect 1a - Background'!DP_TSML004="LCRA - section 4",'Sect 1b - Background'!DP_TSML047="LCRA - section 4")),AND('Sect 1a - Background'!DP_TSML001="No",'Sect 1a - Background'!DP_TSML002="Yes",'Sect 1a - Background'!DP_TSML004="LCHO - section 5"),AND('Sect 1a - Background'!DP_TSML001="No",'Sect 1a - Background'!DP_TSML002="No",'Sect 1a - Background'!DP_TSML003="Yes",'Sect 1a - Background'!DP_TSML004="Combined - section 6")) -> TRUE
B42: V_TSM0133 | C42: Sect 1a Q1L2 and Q2 (Sect 1a + Sect 1b) | D42: There is a mismatch between your answers in Section 1a Q1 and Q2 in Sections 1a and 1b. The responses to Q2 should only be "LCHO - section 5" if your response to Section 1a Q1L2 is "Yes". If your response to Section 1a Q1L2 is "No", then the responses to Q2 cannot be "LCHO - section 5". | F42: Hard | H42: =OR(AND('Sect 1a - Background'!DP_TSML002="Yes",OR('Sect 1a - Background'!DP_TSML004="LCHO - section 5",'Sect 1b - Background'!DP_TSML047="LCHO - section 5")),AND('Sect 1a - Background'!DP_TSML001="Yes",'Sect 1a - Background'!DP_TSML002="No",'Sect 1a - Background'!DP_TSML004="LCRA - section 4"),AND('Sect 1a - Background'!DP_TSML001="No",'Sect 1a - Background'!DP_TSML002="No",'Sect 1a - Background'!DP_TSML003="Yes",'Sect 1a - Background'!DP_TSML004="Combined - section 6")) -> TRUE
B43: V_TSM0134 | C43: Sect 1a Q1L3 and Q2 | D43: There is a mismatch between your answers in Q1 and Q2. The response to Q2 should only be "Combined - section 6" if your response to Q1L3 is "Yes". If your response to Q1L3 is "No", then the response to Q2 cannot be "Combined - section 6". | F43: Hard | H43: =OR(AND('Sect 1a - Background'!DP_TSML004="Combined - section 6",'Sect 1a - Background'!DP_TSML003="Yes"),AND('Sect 1a - Background'!DP_TSML004<>"Combined - section 6",'Sect 1a - Background'!DP_TSML003="No")) -> TRUE
B44: V_TSM0135 | C44: Sect 1a Q5 and Q6 | D44: The date in Q5 cannot be later than the date in Q6 | F44: Hard | H44: =OR(YEAR('Sect 1a - Background'!DP_TSML008)>YEAR('Sect 1a - Background'!DP_TSML007),AND(YEAR('Sect 1a - Background'!DP_TSML008)=YEAR('Sect 1a - Background'!DP_TSML007),MONTH('Sect 1a - Background'!DP_TSML008)>MONTH('Sect 1a - Background'!DP_TSML007)),AND(YEAR('Sect 1a - Background'!DP_TSML008)=YEAR('Sect 1a - Background'!DP_TSML007),MONTH('Sect 1a - Background'!DP_TSML008)=MONTH('Sect 1a - Background'!DP_TSML007),DAY('Sect 1a - Background'!DP_TSML008)>=DAY('Sect 1a - Background'!DP_TSML007))) -> TRUE
B45: V_TSM0136 | C45: Sect 1a Q7 and Q7a | D45: If your response to Q7 is "Yes" then Q7a must be completed. If Q7 is "No", please leave Q7a blank. | F45: Hard | H45: =OR(AND('Sect 1a - Background'!DP_TSML009="Yes",ISBLANK('Sect 1a - Background'!DP_TSML010)=FALSE),AND('Sect 1a - Background'!DP_TSML009="No",ISBLANK('Sect 1a - Background'!DP_TSML010)=TRUE)) -> TRUE
B46: V_TSM0137 | C46: Sect 1a Q8 and Q8a | D46: If your response to Q8 is "Yes" then Q8a must be completed. If Q8 is "No", please leave Q8a blank. | F46: Hard | H46: =OR(AND('Sect 1a - Background'!DP_TSML011="Yes",ISBLANK('Sect 1a - Background'!DP_TSML012)=FALSE),AND('Sect 1a - Background'!DP_TSML011="No",ISBLANK('Sect 1a - Background'!DP_TSML012)=TRUE)) -> TRUE
B47: V_TSM0138 | C47: Sect 1a Q9 and Q9a | D47: If your response to Q9 is "No" then Q9a must have one option selected. If Q9 is "Yes", please leave Q9a blank. | F47: Hard | H47: =OR(AND('Sect 1a - Background'!DP_TSML013="No",ISBLANK('Sect 1a - Background'!DP_TSML014)=FALSE),AND('Sect 1a - Background'!DP_TSML013="Yes",ISBLANK('Sect 1a - Background'!DP_TSML014)=TRUE)) -> TRUE
B48: V_TSM0139 | C48: Sect 1a Q10 and Q11 | D48: Your response to Q11 must be less than or equal to Q10 | F48: Hard | H48: ='Sect 1a - Background'!DP_TSML016<='Sect 1a - Background'!DP_TSML015 -> TRUE
B49: V_TSM0140 | C49: Sect 1a Q13L7 | D49: Q13L7 Total sample size achieved must be greater than 0. | F49: Hard | H49: ='Sect 1a - Background'!DP_TSML024>0 -> TRUE
B50: V_TSM0141 | C50: Sect 1a Q13L6 and Q13a | D50: If you have recorded the use of other methods in Q13L6, please provide details in Q13a. You should also upload a supporting document if necessary. Otherwise, Q13a should be left blank. | F50: Hard | H50: =OR(AND('Sect 1a - Background'!DP_TSML023>0,ISBLANK('Sect 1a - Background'!DP_TSML025)=FALSE),AND('Sect 1a - Background'!DP_TSML023=0,ISBLANK('Sect 1a - Background'!DP_TSML025)=TRUE)) -> TRUE
B51: V_TSM0164 | C51: Sect 1a Q10 | D51: The response to Q10 is expected to be less than 1,000. | F51: Hard | H51: ='Sect 1a - Background'!DP_TSML015<1000 -> TRUE
B52: V_TSM0165 | C52: Sect 1a Q10 and Q11 | D52: Please check your response to Q11 and confirm this is the number of tenants who were NOT included in the sample frame due to exceptional circumstances. | F52: Soft | H52: =IF(ISERROR(('Sect 1a - Background'!DP_TSML016/'Sect 1a - Background'!DP_TSML015)<=0.05),TRUE,(('Sect 1a - Background'!DP_TSML016/'Sect 1a - Background'!DP_TSML015)<=0.05)) -> TRUE
B53: V_TSM0166 | C53: Sect 1a Q10, Q11 and Q13L7 | D53: The total in Q13L7 should not be greater than Q10 minus Q11. | F53: Hard | H53: =('Sect 1a - Background'!DP_TSML024<='Sect 1a - Background'!DP_TSML015-'Sect 1a - Background'!DP_TSML016) -> TRUE
B54: V_TSM0174 | C54: Sect 1b Q2 and Q10 | D54: Q10 should be less than 1,000. | F54: Hard | H54: =OR(ISBLANK('Sect 1b - Background'!DP_TSML047)=TRUE,AND(ISBLANK('Sect 1b - Background'!DP_TSML047)=FALSE,'Sect 1b - Background'!DP_TSML058<1000)) -> TRUE
B55: V_TSM0175 | C55: Sect 1b Q11 | D55: Please check your response to Q11 and confirm this is the number of tenants who were NOT included in the sample frame due to exceptional circumstances. We would not expect more than 10% to be excluded. | F55: Soft | H55: =IF(ISERROR(OR(ISBLANK('Sect 1b - Background'!DP_TSML047)=TRUE,AND(ISBLANK('Sect 1b - Background'!DP_TSML047)=FALSE,('Sect 1b - Background'!DP_TSML059/'Sect 1b - Background'!DP_TSML058<=0.1)))),TRUE,(OR(ISBLANK('Sect 1b - Background'!DP_TSML047)=TRUE,AND(ISBLANK('Sect 1b - Background'!DP_TSML047)=FALSE,('Sect 1b - Background'!DP_TSML059/'Sect 1b - Background'!DP_TSML058<=0.1))))) -> TRUE
B56: V_TSM0176 | C56: Sect 1b Q13 | D56: Q13L7 must be less than or equal to Q10 - Q11. | F56: Hard | H56: =OR(AND(ISBLANK('Sect 1b - Background'!DP_TSML047)=FALSE,'Sect 1b - Background'!DP_TSML067<='Sect 1b - Background'!DP_TSML058-'Sect 1b - Background'!DP_TSML059),ISBLANK('Sect 1b - Background'!DP_TSML047)=TRUE) -> TRUE
B57: V_TSM0187 | C57: Sect 1b Q2 | D57: Q2 should be completed if both LCRA and LCHO details are being reported. Please leave this question blank if only one stock type or a combined response is being provided. | F57: Hard | H57: =OR(AND('Sect 1b - Background'!DP_TSML044="Yes",'Sect 1b - Background'!DP_TSML045="Yes",ISBLANK('Sect 1b - Background'!DP_TSML047)=FALSE),AND('Sect 1b - Background'!DP_TSML044="No",'Sect 1b - Background'!DP_TSML045="Yes",ISBLANK('Sect 1b - Background'!DP_TSML047)=TRUE),AND('Sect 1b - Background'!DP_TSML044="Yes",'Sect 1b - Background'!DP_TSML045="No",ISBLANK('Sect 1b - Background'!DP_TSML047)=TRUE),AND('Sect 1b - Background'!DP_TSML044="No",'Sect 1b - Background'!DP_TSML045="No",'Sect 1b - Background'!DP_TSML046="Yes",ISBLANK('Sect 1b - Background'!DP_TSML047)=TRUE)) -> TRUE
B58: V_TSM0188 | C58: Sect 1b Q3 | D58: Q3 should be completed if both LCRA and LCHO details are being reported. Please leave this question blank if only one stock type or a combined response is being provided. | F58: Hard | H58: =OR(AND('Sect 1b - Background'!DP_TSML044="Yes",'Sect 1b - Background'!DP_TSML045="Yes",ISBLANK('Sect 1b - Background'!DP_TSML048)=FALSE),AND('Sect 1b - Background'!DP_TSML044="No",'Sect 1b - Background'!DP_TSML045="Yes",ISBLANK('Sect 1b - Background'!DP_TSML048)=TRUE),AND('Sect 1b - Background'!DP_TSML044="Yes",'Sect 1b - Background'!DP_TSML045="No",ISBLANK('Sect 1b - Background'!DP_TSML048)=TRUE),AND('Sect 1b - Background'!DP_TSML044="No",'Sect 1b - Background'!DP_TSML045="No",'Sect 1b - Background'!DP_TSML046="Yes",ISBLANK('Sect 1b - Background'!DP_TSML048)=TRUE)) -> TRUE
B59: V_TSM0189 | C59: Sect 1b Q4 | D59: Q4 should be completed if both LCRA and LCHO details are being reported. Please leave this question blank if only one stock type or a combined response is being provided. | F59: Hard | H59: =OR(AND('Sect 1b - Background'!DP_TSML044="Yes",'Sect 1b - Background'!DP_TSML045="Yes",ISBLANK('Sect 1b - Background'!DP_TSML049)=FALSE),AND('Sect 1b - Background'!DP_TSML044="No",'Sect 1b - Background'!DP_TSML045="Yes",ISBLANK('Sect 1b - Background'!DP_TSML049)=TRUE),AND('Sect 1b - Background'!DP_TSML044="Yes",'Sect 1b - Background'!DP_TSML045="No",ISBLANK('Sect 1b - Background'!DP_TSML049)=TRUE),AND('Sect 1b - Background'!DP_TSML044="No",'Sect 1b - Background'!DP_TSML045="No",'Sect 1b - Background'!DP_TSML046="Yes",ISBLANK('Sect 1b - Background'!DP_TSML049)=TRUE)) -> TRUE
B60: V_TSM0190 | C60: Sect 1b Q5 | D60: Q5 should be completed if both LCRA and LCHO details are being reported. Please leave this question blank if only one stock type or a combined response is being provided. | F60: Hard | H60: =OR(AND('Sect 1b - Background'!DP_TSML044="Yes",'Sect 1b - Background'!DP_TSML045="Yes",ISBLANK('Sect 1b - Background'!DP_TSML050)=FALSE),AND('Sect 1b - Background'!DP_TSML044="No",'Sect 1b - Background'!DP_TSML045="Yes",ISBLANK('Sect 1b - Background'!DP_TSML050)=TRUE),AND('Sect 1b - Background'!DP_TSML044="Yes",'Sect 1b - Background'!DP_TSML045="No",ISBLANK('Sect 1b - Background'!DP_TSML050)=TRUE),AND('Sect 1b - Background'!DP_TSML044="No",'Sect 1b - Background'!DP_TSML045="No",'Sect 1b - Background'!DP_TSML046="Yes",ISBLANK('Sect 1b - Background'!DP_TSML050)=TRUE)) -> TRUE
B61: V_TSM0191 | C61: Sect 1b Q6 | D61: Q6 should be completed if both LCRA and LCHO details are being reported. Please leave this question blank if only one stock type or a combined response is being provided. | F61: Hard | H61: =OR(AND('Sect 1b - Background'!DP_TSML044="Yes",'Sect 1b - Background'!DP_TSML045="Yes",ISBLANK('Sect 1b - Background'!DP_TSML051)=FALSE),AND('Sect 1b - Background'!DP_TSML044="No",'Sect 1b - Background'!DP_TSML045="Yes",ISBLANK('Sect 1b - Background'!DP_TSML051)=TRUE),AND('Sect 1b - Background'!DP_TSML044="Yes",'Sect 1b - Background'!DP_TSML045="No",ISBLANK('Sect 1b - Background'!DP_TSML051)=TRUE),AND('Sect 1b - Background'!DP_TSML044="No",'Sect 1b - Background'!DP_TSML045="No",'Sect 1b - Background'!DP_TSML046="Yes",ISBLANK('Sect 1b - Background'!DP_TSML051)=TRUE)) -> TRUE
B62: V_TSM0192 | C62: Sect 1b Q7 | D62: Q7 should be completed if both LCRA and LCHO details are being reported. Please leave this question blank if only one stock type or a combined response is being provided. | F62: Hard | H62: =OR(AND('Sect 1b - Background'!DP_TSML044="Yes",'Sect 1b - Background'!DP_TSML045="Yes",ISBLANK('Sect 1b - Background'!DP_TSML052)=FALSE),AND('Sect 1b - Background'!DP_TSML044="No",'Sect 1b - Background'!DP_TSML045="Yes",ISBLANK('Sect 1b - Background'!DP_TSML052)=TRUE),AND('Sect 1b - Background'!DP_TSML044="Yes",'Sect 1b - Background'!DP_TSML045="No",ISBLANK('Sect 1b - Background'!DP_TSML052)=TRUE),AND('Sect 1b - Background'!DP_TSML044="No",'Sect 1b - Background'!DP_TSML045="No",'Sect 1b - Background'!DP_TSML046="Yes",ISBLANK('Sect 1b - Background'!DP_TSML052)=TRUE)) -> TRUE
B63: V_TSM0193 | C63: Sect 1b Q8 | D63: Q8 should be completed if both LCRA and LCHO details are being reported. Please leave this question blank if only one stock type or a combined response is being provided. | F63: Hard | H63: =OR(AND('Sect 1b - Background'!DP_TSML044="Yes",'Sect 1b - Background'!DP_TSML045="Yes",ISBLANK('Sect 1b - Background'!DP_TSML054)=FALSE),AND('Sect 1b - Background'!DP_TSML044="No",'Sect 1b - Background'!DP_TSML045="Yes",ISBLANK('Sect 1b - Background'!DP_TSML054)=TRUE),AND('Sect 1b - Background'!DP_TSML044="Yes",'Sect 1b - Background'!DP_TSML045="No",ISBLANK('Sect 1b - Background'!DP_TSML054)=TRUE),AND('Sect 1b - Background'!DP_TSML044="No",'Sect 1b - Background'!DP_TSML045="No",'Sect 1b - Background'!DP_TSML046="Yes",ISBLANK('Sect 1b - Background'!DP_TSML054)=TRUE)) -> TRUE
B64: V_TSM0194 | C64: Sect 1b Q12 | D64: Q12 should be completed if both LCRA and LCHO details are being reported. Please leave this question blank if only one stock type or a combined response is being provided. | F64: Hard | H64: =OR(AND('Sect 1b - Background'!DP_TSML044="Yes",'Sect 1b - Background'!DP_TSML045="Yes",ISBLANK('Sect 1b - Background'!DP_TSML060)=FALSE),AND('Sect 1b - Background'!DP_TSML044="No",'Sect 1b - Background'!DP_TSML045="Yes",ISBLANK('Sect 1b - Background'!DP_TSML060)=TRUE),AND('Sect 1b - Background'!DP_TSML044="Yes",'Sect 1b - Background'!DP_TSML045="No",ISBLANK('Sect 1b - Background'!DP_TSML060)=TRUE),AND('Sect 1b - Background'!DP_TSML044="No",'Sect 1b - Background'!DP_TSML045="No",'Sect 1b - Background'!DP_TSML046="Yes",ISBLANK('Sect 1b - Background'!DP_TSML060)=TRUE)) -> TRUE
B65: V_TSM0195 | C65: Sect 1b Q2 and Q14 | D65: If Q2 is populated then Q14 cannot be blank | F65: Hard | H65: =OR(AND(ISBLANK('Sect 1b - Background'!DP_TSML047)=TRUE,ISBLANK('Sect 1b - Background'!DP_TSML075)=TRUE),AND(ISBLANK('Sect 1b - Background'!DP_TSML047)=FALSE,ISBLANK('Sect 1b - Background'!DP_TSML075)=FALSE)) -> TRUE
B66: V_TSM0025a | C66: Sect 3 Q2 BS01 denominator | D66: Please check the denominator reported for BS01. The denominator should be the number of dwellings owned. | F66: Soft | H66: ='Sect 3 - TSMs reported by all'!DP_TSML144<=200000 -> TRUE
B67: V_TSM0026a | C67: Sect 3 Q2 BS02 denominator | D67: Please check the denominator reported for BS02. The denominator should be the number of dwellings owned. | F67: Soft | H67: ='Sect 3 - TSMs reported by all'!DP_TSML147<=200000 -> TRUE
B68: V_TSM0027a | C68: Sect 3 Q2 BS03 denominator | D68: Please check the denominator reported for BS03. The denominator should be the number of dwellings owned. | F68: Soft | H68: ='Sect 3 - TSMs reported by all'!DP_TSML150<=200000 -> TRUE
B69: V_TSM0028a | C69: Sect 3 Q2 BS04 denominator | D69: Please check the denominator reported for BS04. The denominator should be the number of dwellings owned. | F69: Soft | H69: ='Sect 3 - TSMs reported by all'!DP_TSML153<=200000 -> TRUE
B70: V_TSM0029a | C70: Sect 3 Q2 BS05 denominator | D70: Please check the denominator reported for BS05. The denominator should be the number of dwellings owned. | F70: Soft | H70: ='Sect 3 - TSMs reported by all'!DP_TSML156<=200000 -> TRUE
B71: V_TSM0033a | C71: Sect 4 Q1 CH01(1) | D71: Please check that you have entered the numerator and denominator for Q1L1 correctly. The numerator cannot be greater than the denominator. | F71: Hard | H71: ='Sect 4 - TSMs reported for LCRA'!DP_TSML178<='Sect 4 - TSMs reported for LCRA'!DP_TSML179 -> TRUE
B72: V_TSM0033b | C72: Sect 4 Q1 CH02(1) | D72: Please check that you have entered the numerator and denominator for Q1L2 correctly. The numerator cannot be greater than the denominator. | F72: Hard | H72: ='Sect 4 - TSMs reported for LCRA'!DP_TSML181<='Sect 4 - TSMs reported for LCRA'!DP_TSML182 -> TRUE
B73: V_TSM0229 | C73: Sect 2 Q4a BS01 | D73: Please check the value entered in Q4a BS01 and ensure that this is the proportion of homes where all required gas safety checks have been carried out. | F73: Soft | H73: =OR('Sect 2 - Published TSMs'!DP_TSML087>=95,ISBLANK('Sect 2 - Published TSMs'!DP_TSML087)=TRUE) -> TRUE
B74: V_TSM0230 | C74: Sect 2 Q4a BS02 | D74: Please check the value entered in Q4a BS02 and ensure that this is the proportion of homes where all required fire risk assessments have been carried out. | F74: Soft | H74: =OR('Sect 2 - Published TSMs'!DP_TSML088>=95,ISBLANK('Sect 2 - Published TSMs'!DP_TSML088)=TRUE) -> TRUE
B75: V_TSM0231 | C75: Sect 2 Q4a BS03 | D75: Please check the value entered in Q4a BS03 and ensure that this is the proportion of homes where all required asbestos management surveys or re-inspections have been carried out. | F75: Soft | H75: =OR('Sect 2 - Published TSMs'!DP_TSML089>=95,ISBLANK('Sect 2 - Published TSMs'!DP_TSML089)=TRUE) -> TRUE
B76: V_TSM0232 | C76: Sect 2 Q4a BS04 | D76: Please check the value entered in Q4a BS04 and ensure that this is the proportion of homes for which all required legionella risk assessments have been carried out. | F76: Soft | H76: =OR('Sect 2 - Published TSMs'!DP_TSML090>=95,ISBLANK('Sect 2 - Published TSMs'!DP_TSML090)=TRUE) -> FALSE
B77: V_TSM0233 | C77: Sect 2 Q4a BS05 | D77: Please check the value entered in Q4a BS05 and ensure that this is the proportion of homes where all required communal passenger lift safety checks have been carried out. | F77: Soft | H77: =OR('Sect 2 - Published TSMs'!DP_TSML091>=95,ISBLANK('Sect 2 - Published TSMs'!DP_TSML091)=TRUE) -> TRUE
B78: V_TSM0234 | C78: Sect 2 Q4b NM01 (1) | D78: Please check the value entered in Q4b NM01 (1) and ensure it is entered per 1,000 homes. | F78: Soft | H78: =OR('Sect 2 - Published TSMs'!DP_TSML092<=500,ISBLANK('Sect 2 - Published TSMs'!DP_TSML092)=TRUE) -> TRUE
B79: V_TSM0235 | C79: Sect 2 Q4b NM01 (2) | D79: Please check the value entered in Q4b NM01 (2) and ensure it is entered per 1,000 homes. | F79: Soft | H79: =OR('Sect 2 - Published TSMs'!DP_TSML093<=500,ISBLANK('Sect 2 - Published TSMs'!DP_TSML093)=TRUE) -> TRUE
B80: V_TSM0236 | C80: Sect 2 Q4b NM01 (2) | D80: We would expect the value reported for NM01(2) to be less than or equal to the value reported for NM01(1). | F80: Soft | H80: =OR('Sect 2 - Published TSMs'!DP_TSML093<='Sect 2 - Published TSMs'!DP_TSML092,ISBLANK('Sect 2 - Published TSMs'!DP_TSML093)=TRUE) -> TRUE
B81: V_TSM0237 | C81: Sect 2 Q4c RP01 | D81: Please check the value entered in Q4c RP01. This should be the proportion of homes which do not meet the Decent Homes Standard. | F81: Soft | H81: =OR('Sect 2 - Published TSMs'!DP_TSML094<=80,ISBLANK('Sect 2 - Published TSMs'!DP_TSML094)=TRUE) -> TRUE
B82: V_TSM0238 | C82: Sect 2 Q4c RP02 (1) | D82: Please check the value entered in Q4c RP02 (1). Please ensure this is the proportion of non-emergency repairs completed within the landlord's target timescale. | F82: Soft | H82: =OR('Sect 2 - Published TSMs'!DP_TSML095>=50,ISBLANK('Sect 2 - Published TSMs'!DP_TSML095)=TRUE) -> TRUE
B83: V_TSM0239 | C83: Sect 2 Q4c RP02 (2) | D83: Please check the value entered in Q4c RP02 (2). Please ensure this is the proportion of emergency repairs completed within the landlord's target timescale. | F83: Soft | H83: =OR('Sect 2 - Published TSMs'!DP_TSML096>=50,ISBLANK('Sect 2 - Published TSMs'!DP_TSML096)=TRUE) -> TRUE
B84: V_TSM0240 | C84: Sect 2 Q4d CH01 (1) LCRA | D84: Please check the value entered in Q4d CH01 (1) LCRA and ensure it is entered per 1,000 homes. | F84: Soft | H84: =OR('Sect 2 - Published TSMs'!DP_TSML097<=800,ISBLANK('Sect 2 - Published TSMs'!DP_TSML097)=TRUE) -> TRUE
B85: V_TSM0241 | C85: Sect 2 Q4d CH01 (1) LCHO | D85: Please check the value entered in Q4d CH01 (1) LCHO and ensure it is entered per 1,000 homes. | F85: Soft | H85: =OR('Sect 2 - Published TSMs'!DP_TSML098<=800,ISBLANK('Sect 2 - Published TSMs'!DP_TSML098)=TRUE) -> TRUE
B86: V_TSM0242 | C86: Sect 2 Q4d CH01 (1) Combined | D86: Please check the value entered in Q4d CH01 (1) Combined and ensure it is entered per 1,000 homes. | F86: Soft | H86: =OR('Sect 2 - Published TSMs'!DP_TSML099<=800,ISBLANK('Sect 2 - Published TSMs'!DP_TSML099)=TRUE) -> TRUE
B87: V_TSM0243 | C87: Sect 2 Q4d CH01 (2) LCRA | D87: Please check the value entered in Q4d CH01 (2) LCRA and ensure it is entered per 1,000 homes. | F87: Soft | H87: =OR('Sect 2 - Published TSMs'!DP_TSML100<=600,ISBLANK('Sect 2 - Published TSMs'!DP_TSML100)=TRUE) -> TRUE
B88: V_TSM0244 | C88: Sect 2 Q4d CH01 (2) LCHO | D88: Please check the value entered in Q4d CH01 (2) LCHO and ensure it is entered per 1,000 homes. | F88: Soft | H88: =OR('Sect 2 - Published TSMs'!DP_TSML101<=600,ISBLANK('Sect 2 - Published TSMs'!DP_TSML101)=TRUE) -> TRUE
B89: V_TSM0245 | C89: Sect 2 Q4d CH01 (2) Combined | D89: Please check the value entered in Q4d CH01 (2) Combined and ensure it is entered per 1,000 homes. | F89: Soft | H89: =OR('Sect 2 - Published TSMs'!DP_TSML102<=600,ISBLANK('Sect 2 - Published TSMs'!DP_TSML102)=TRUE) -> TRUE
B90: V_TSM0246 | C90: Sect 2 Q4d CH02 (1) LCRA | D90: Please check the value entered in Q4d CH02 (1) LCRA. Please ensure this is the proportion of stage one complaints responded to within the Housing Ombudsman's Complaint Handling Code timescales. | F90: Soft | H90: =OR('Sect 2 - Published TSMs'!DP_TSML103>=50,ISBLANK('Sect 2 - Published TSMs'!DP_TSML103)=TRUE) -> TRUE
B91: V_TSM0247 | C91: Sect 2 Q4d CH02 (1) LCHO | D91: Please check the value entered in Q4d CH02 (1) LCHO. Please ensure this is the proportion of stage one complaints responded to within the Housing Ombudsman's Complaint Handling Code timescales. | F91: Soft | H91: =OR('Sect 2 - Published TSMs'!DP_TSML104>=30,ISBLANK('Sect 2 - Published TSMs'!DP_TSML104)=TRUE) -> TRUE
B92: V_TSM0248 | C92: Sect 2 Q4d CH02 (1) Combined | D92: Please check the value entered in Q4d CH02 (1) Combined. Please ensure this is the proportion of stage one complaints responded to within the Housing Ombudsman's Complaint Handling Code timescales. | F92: Soft | H92: =OR('Sect 2 - Published TSMs'!DP_TSML105>=30,ISBLANK('Sect 2 - Published TSMs'!DP_TSML105)=TRUE) -> TRUE
B93: V_TSM0249 | C93: Sect 2 Q4d CH02 (2) LCRA | D93: Please check the value entered in Q4d CH02 (2) LCRA. Please ensure this is the proportion of stage two complaints responded to within the Housing Ombudsman's Complaint Handling Code timescales. | F93: Soft | H93: =OR('Sect 2 - Published TSMs'!DP_TSML106>=50,ISBLANK('Sect 2 - Published TSMs'!DP_TSML106)=TRUE) -> FALSE
B94: V_TSM0250 | C94: Sect 2 Q4d CH02 (2) LCHO | D94: Please check the value entered in Q4d CH02 (2) LCHO. Please ensure this is the proportion of stage two complaints responded to within the Housing Ombudsman's Complaint Handling Code timescales. | F94: Soft | H94: =OR('Sect 2 - Published TSMs'!DP_TSML107>=30,ISBLANK('Sect 2 - Published TSMs'!DP_TSML107)=TRUE) -> TRUE
B95: V_TSM0251 | C95: Sect 2 Q4d CH02 (2) Combined | D95: Please check the value entered in Q4d CH02 (2) Combined. Please ensure this is the proportion of stage two complaints responded to within the Housing Ombudsman's Complaint Handling Code timescales. | F95: Soft | H95: =OR('Sect 2 - Published TSMs'!DP_TSML108>=30,ISBLANK('Sect 2 - Published TSMs'!DP_TSML108)=TRUE) -> TRUE
B96: V_TSM0252 | C96: Sect 2 Q4e TP01 LCRA | D96: Please check the value entered in Q4e TP01 LCRA and ensure that you have reported the TSM as per the requirements. The value entered is less than 20%. | F96: Soft | H96: =OR('Sect 2 - Published TSMs'!DP_TSML109>=20,ISBLANK('Sect 2 - Published TSMs'!DP_TSML109)=TRUE) -> TRUE
B97: V_TSM0253 | C97: Sect 2 Q4e TP01 LCHO | D97: Please check the value entered in Q4e TP01 LCHO and ensure that you have reported the TSM as per the requirements. The value entered is less than 20%. | F97: Soft | H97: =OR('Sect 2 - Published TSMs'!DP_TSML110>=20,ISBLANK('Sect 2 - Published TSMs'!DP_TSML110)=TRUE) -> TRUE
B98: V_TSM0254 | C98: Sect 2 Q4e TP01 Combined | D98: Please check the value entered in Q4e TP01 Combined and ensure that you have reported the TSM as per the requirements. The value entered is less than 20%. | F98: Soft | H98: =OR('Sect 2 - Published TSMs'!DP_TSML111>=20,ISBLANK('Sect 2 - Published TSMs'!DP_TSML111)=TRUE) -> TRUE
B99: V_TSM0255 | C99: Sect 2 Q4e TP02 LCRA | D99: Please check the value entered in Q4e TP02 LCRA and ensure that you have reported the TSM as per the requirements. The value entered is less than 20%. | F99: Soft | H99: =OR('Sect 2 - Published TSMs'!DP_TSML112>=20,ISBLANK('Sect 2 - Published TSMs'!DP_TSML112)=TRUE) -> TRUE
B100: V_TSM0256 | C100: Sect 2 Q4e TP02 Combined | D100: Please check the value entered in Q4e TP02 Combined and ensure that you have reported the TSM as per the requirements. The value entered is less than 20%. | F100: Soft | H100: =OR('Sect 2 - Published TSMs'!DP_TSML113>=20,ISBLANK('Sect 2 - Published TSMs'!DP_TSML113)=TRUE) -> TRUE
B101: V_TSM0257 | C101: Sect 2 Q4e TP03 LCRA | D101: Please check the value entered in Q4e TP03 LCRA and ensure that you have reported the TSM as per the requirements. The value entered is less than 20%. | F101: Soft | H101: =OR('Sect 2 - Published TSMs'!DP_TSML114>=20,ISBLANK('Sect 2 - Published TSMs'!DP_TSML114)=TRUE) -> TRUE
B102: V_TSM0258 | C102: Sect 2 Q4e TP03 Combined | D102: Please check the value entered in Q4e TP03 Combined and ensure that you have reported the TSM as per the requirements. The value entered is less than 20%. | F102: Soft | H102: =OR('Sect 2 - Published TSMs'!DP_TSML115>=20,ISBLANK('Sect 2 - Published TSMs'!DP_TSML115)=TRUE) -> TRUE
B103: V_TSM0259 | C103: Sect 2 Q4e TP04 LCRA | D103: Please check the value entered in Q4e TP04 LCRA and ensure that you have reported the TSM as per the requirements. The value entered is less than 20%. | F103: Soft | H103: =OR('Sect 2 - Published TSMs'!DP_TSML116>=20,ISBLANK('Sect 2 - Published TSMs'!DP_TSML116)=TRUE) -> TRUE
B104: V_TSM0260 | C104: Sect 2 Q4e TP04 Combined | D104: Please check the value entered in Q4e TP04 Combined and ensure that you have reported the TSM as per the requirements. The value entered is less than 20%. | F104: Soft | H104: =OR('Sect 2 - Published TSMs'!DP_TSML117>=20,ISBLANK('Sect 2 - Published TSMs'!DP_TSML117)=TRUE) -> TRUE
B105: V_TSM0261 | C105: Sect 2 Q4e TP05 LCRA | D105: Please check the value entered in Q4e TP05 LCRA and ensure that you have reported the TSM as per the requirements. The value entered is less than 20%. | F105: Soft | H105: =OR('Sect 2 - Published TSMs'!DP_TSML118>=20,ISBLANK('Sect 2 - Published TSMs'!DP_TSML118)=TRUE) -> TRUE
B106: V_TSM0262 | C106: Sect 2 Q4e TP05 LCHO | D106: Please check the value entered in Q4e TP05 LCHO and ensure that you have reported the TSM as per the requirements. The value entered is less than 20%. | F106: Soft | H106: =OR('Sect 2 - Published TSMs'!DP_TSML119>=20,ISBLANK('Sect 2 - Published TSMs'!DP_TSML119)=TRUE) -> TRUE
B107: V_TSM0263 | C107: Sect 2 Q4e TP05 Combined | D107: Please check the value entered in Q4e TP05 Combined and ensure that you have reported the TSM as per the requirements. The value entered is less than 20%. | F107: Soft | H107: =OR('Sect 2 - Published TSMs'!DP_TSML120>=20,ISBLANK('Sect 2 - Published TSMs'!DP_TSML120)=TRUE) -> TRUE
B108: V_TSM0264 | C108: Sect 2 Q4e TP06 LCRA | D108: Please check the value entered in Q4e TP06 LCRA and ensure that you have reported the TSM as per the requirements. The value entered is less than 20%. | F108: Soft | H108: =OR('Sect 2 - Published TSMs'!DP_TSML121>=20,ISBLANK('Sect 2 - Published TSMs'!DP_TSML121)=TRUE) -> TRUE
B109: V_TSM0265 | C109: Sect 2 Q4e TP06 LCHO | D109: Please check the value entered in Q4e TP06 LCHO and ensure that you have reported the TSM as per the requirements. The value entered is less than 20%. | F109: Soft | H109: =OR('Sect 2 - Published TSMs'!DP_TSML122>=20,ISBLANK('Sect 2 - Published TSMs'!DP_TSML122)=TRUE) -> TRUE
B110: V_TSM0266 | C110: Sect 2 Q4e TP06 Combined | D110: Please check the value entered in Q4e TP06 Combined and ensure that you have reported the TSM as per the requirements. The value entered is less than 20%. | F110: Soft | H110: =OR('Sect 2 - Published TSMs'!DP_TSML123>=20,ISBLANK('Sect 2 - Published TSMs'!DP_TSML123)=TRUE) -> TRUE
B111: V_TSM0267 | C111: Sect 2 Q4e TP07 LCRA | D111: Please check the value entered in Q4e TP07 LCRA and ensure that you have reported the TSM as per the requirements. The value entered is less than 20%. | F111: Soft | H111: =OR('Sect 2 - Published TSMs'!DP_TSML124>=20,ISBLANK('Sect 2 - Published TSMs'!DP_TSML124)=TRUE) -> TRUE
B112: V_TSM0268 | C112: Sect 2 Q4e TP07 LCHO | D112: Please check the value entered in Q4e TP07 LCHO and ensure that you have reported the TSM as per the requirements. The value entered is less than 20%. | F112: Soft | H112: =OR('Sect 2 - Published TSMs'!DP_TSML125>=20,ISBLANK('Sect 2 - Published TSMs'!DP_TSML125)=TRUE) -> TRUE
B113: V_TSM0269 | C113: Sect 2 Q4e TP07 Combined | D113: Please check the value entered in Q4e TP07 Combined and ensure that you have reported the TSM as per the requirements. The value entered is less than 20%. | F113: Soft | H113: =OR('Sect 2 - Published TSMs'!DP_TSML126>=20,ISBLANK('Sect 2 - Published TSMs'!DP_TSML126)=TRUE) -> TRUE
B114: V_TSM0270 | C114: Sect 2 Q4e TP08 LCRA | D114: Please check the value entered in Q4e TP08 LCRA and ensure that you have reported the TSM as per the requirements. The value entered is less than 20%. | F114: Soft | H114: =OR('Sect 2 - Published TSMs'!DP_TSML127>=20,ISBLANK('Sect 2 - Published TSMs'!DP_TSML127)=TRUE) -> TRUE
B115: V_TSM0271 | C115: Sect 2 Q4e TP08 LCHO | D115: Please check the value entered in Q4e TP08 LCHO and ensure that you have reported the TSM as per the requirements. The value entered is less than 20%. | F115: Soft | H115: =OR('Sect 2 - Published TSMs'!DP_TSML128>=20,ISBLANK('Sect 2 - Published TSMs'!DP_TSML128)=TRUE) -> TRUE
B116: V_TSM0272 | C116: Sect 2 Q4e TP08 Combined | D116: Please check the value entered in Q4e TP08 Combined and ensure that you have reported the TSM as per the requirements. The value entered is less than 20%. | F116: Soft | H116: =OR('Sect 2 - Published TSMs'!DP_TSML129>=20,ISBLANK('Sect 2 - Published TSMs'!DP_TSML129)=TRUE) -> TRUE
B117: V_TSM0273 | C117: Sect 2 Q4e TP09 LCRA | D117: Please check the value entered in Q4e TP09 LCRA and ensure that you have reported the TSM as per the requirements. The value entered is less than 20%. | F117: Soft | H117: =OR('Sect 2 - Published TSMs'!DP_TSML130>=20,ISBLANK('Sect 2 - Published TSMs'!DP_TSML130)=TRUE) -> TRUE
B118: V_TSM0274 | C118: Sect 2 Q4e TP09 LCHO | D118: Please check the value entered in Q4e TP09 LCHO and ensure that you have reported the TSM as per the requirements. The value entered is less than 20%. | F118: Soft | H118: =OR('Sect 2 - Published TSMs'!DP_TSML131>=20,ISBLANK('Sect 2 - Published TSMs'!DP_TSML131)=TRUE) -> FALSE
B119: V_TSM0275 | C119: Sect 2 Q4e TP09 Combined | D119: Please check the value entered in Q4e TP09 Combined and ensure that you have reported the TSM as per the requirements. The value entered is less than 20%. | F119: Soft | H119: =OR('Sect 2 - Published TSMs'!DP_TSML132>=20,ISBLANK('Sect 2 - Published TSMs'!DP_TSML132)=TRUE) -> FALSE
B120: V_TSM0276 | C120: Sect 2 Q4e TP10 LCRA | D120: Please check the value entered in Q4e TP10 LCRA and ensure that you have reported the TSM as per the requirements. The value entered is less than 20%. | F120: Soft | H120: =OR('Sect 2 - Published TSMs'!DP_TSML133>=20,ISBLANK('Sect 2 - Published TSMs'!DP_TSML133)=TRUE) -> TRUE
B121: V_TSM0277 | C121: Sect 2 Q4e TP10 LCHO | D121: Please check the value entered in Q4e TP10 LCHO and ensure that you have reported the TSM as per the requirements. The value entered is less than 20%. | F121: Soft | H121: =OR('Sect 2 - Published TSMs'!DP_TSML134>=20,ISBLANK('Sect 2 - Published TSMs'!DP_TSML134)=TRUE) -> TRUE
B122: V_TSM0278 | C122: Sect 2 Q4e TP10 Combined | D122: Please check the value entered in Q4e TP10 Combined and ensure that you have reported the TSM as per the requirements. The value entered is less than 20%. | F122: Soft | H122: =OR('Sect 2 - Published TSMs'!DP_TSML135>=20,ISBLANK('Sect 2 - Published TSMs'!DP_TSML135)=TRUE) -> TRUE
B123: V_TSM0279 | C123: Sect 2 Q4e TP11 LCRA | D123: Please check the value entered in Q4e TP11 LCRA and ensure that you have reported the TSM as per the requirements. The value entered is less than 20%. | F123: Soft | H123: =OR('Sect 2 - Published TSMs'!DP_TSML136>=20,ISBLANK('Sect 2 - Published TSMs'!DP_TSML136)=TRUE) -> TRUE
B124: V_TSM0280 | C124: Sect 2 Q4e TP11 LCHO | D124: Please check the value entered in Q4e TP11 LCHO and ensure that you have reported the TSM as per the requirements. The value entered is less than 20%. | F124: Soft | H124: =OR('Sect 2 - Published TSMs'!DP_TSML137>=20,ISBLANK('Sect 2 - Published TSMs'!DP_TSML137)=TRUE) -> FALSE
B125: V_TSM0281 | C125: Sect 2 Q4e TP11 Combined | D125: Please check the value entered in Q4e TP11 Combined and ensure that you have reported the TSM as per the requirements. The value entered is less than 20%. | F125: Soft | H125: =OR('Sect 2 - Published TSMs'!DP_TSML138>=20,ISBLANK('Sect 2 - Published TSMs'!DP_TSML138)=TRUE) -> TRUE
B126: V_TSM0282 | C126: Sect 2 Q4e TP12 LCRA | D126: Please check the value entered in Q4e TP12 LCRA and ensure that you have reported the TSM as per the requirements. The value entered is less than 20%. | F126: Soft | H126: =OR('Sect 2 - Published TSMs'!DP_TSML139>=20,ISBLANK('Sect 2 - Published TSMs'!DP_TSML139)=TRUE) -> TRUE
B127: V_TSM0283 | C127: Sect 2 Q4e TP12 LCHO | D127: Please check the value entered in Q4e TP12 LCHO and ensure that you have reported the TSM as per the requirements. The value entered is less than 20%. | F127: Soft | H127: =OR('Sect 2 - Published TSMs'!DP_TSML140>=20,ISBLANK('Sect 2 - Published TSMs'!DP_TSML140)=TRUE) -> FALSE
B128: V_TSM0284 | C128: Sect 2 Q4e TP12 Combined | D128: Please check the value entered in Q4e TP12 Combined and ensure that you have reported the TSM as per the requirements. The value entered is less than 20%. | F128: Soft | H128: =OR('Sect 2 - Published TSMs'!DP_TSML141>=20,ISBLANK('Sect 2 - Published TSMs'!DP_TSML141)=TRUE) -> TRUE
B129: V_TSM0285 | C129: Sect 1a Q1L1 and Sect 2 Q4d CH01 (1) LCRA | D129: Q4d CH01 (1) LCRA must be completed if Section 1a Q1 indicates your are reporting TSMs for LCRA dwellings . Otherwise it should be left blank | F129: Hard | H129: =OR(AND('Sect 1a - Background'!DP_TSML001="Yes",ISBLANK('Sect 2 - Published TSMs'!DP_TSML097)=FALSE),AND('Sect 1a - Background'!DP_TSML001="No",ISBLANK('Sect 2 - Published TSMs'!DP_TSML097)=TRUE)) -> TRUE
B130: V_TSM0286 | C130: Sect 1a Q1L2 and Sect 2 Q4d CH01 (1) LCHO | D130: Q4d CH01 (1) LCHO must be completed if Section 1a Q1 indicates your are reporting TSMs for LCHO dwellings . Otherwise it should be left blank | F130: Hard | H130: =OR(AND('Sect 1a - Background'!DP_TSML002="Yes",ISBLANK('Sect 2 - Published TSMs'!DP_TSML098)=FALSE),AND('Sect 1a - Background'!DP_TSML002="No",ISBLANK('Sect 2 - Published TSMs'!DP_TSML098)=TRUE)) -> TRUE
B131: V_TSM0287 | C131: Sect 1a Q1L3 and Sect 2 Q4d CH01 (1) Combined | D131: Q4d CH01 (1) Combined must be completed if Section 1a Q1 indicates your are reporting TSMs for LCRA and LCHO dwellings on a combined basis . Otherwise it should be left blank | F131: Hard | H131: =OR(AND('Sect 1a - Background'!DP_TSML003="Yes",ISBLANK('Sect 2 - Published TSMs'!DP_TSML099)=FALSE),AND('Sect 1a - Background'!DP_TSML003="No",ISBLANK('Sect 2 - Published TSMs'!DP_TSML099)=TRUE)) -> FALSE
B132: V_TSM0288 | C132: Sect 1a Q1L1 and Sect 2 Q4d CH01 (2) LCRA | D132: Q4d CH01 (2) LCRA must be completed if Section 1a Q1 indicates your are reporting TSMs for LCRA dwellings . Otherwise it should be left blank | F132: Hard | H132: =OR(AND('Sect 1a - Background'!DP_TSML001="Yes",ISBLANK('Sect 2 - Published TSMs'!DP_TSML100)=FALSE),AND('Sect 1a - Background'!DP_TSML001="No",ISBLANK('Sect 2 - Published TSMs'!DP_TSML100)=TRUE)) -> TRUE
B133: V_TSM0289 | C133: Sect 1a Q1L2 and Sect 2 Q4d CH01 (2) LCHO | D133: Q4d CH01 (2) LCHO must be completed if Section 1a Q1 indicates your are reporting TSMs for LCHO dwellings . Otherwise it should be left blank | F133: Hard | H133: =OR(AND('Sect 1a - Background'!DP_TSML002="Yes",ISBLANK('Sect 2 - Published TSMs'!DP_TSML101)=FALSE),AND('Sect 1a - Background'!DP_TSML002="No",ISBLANK('Sect 2 - Published TSMs'!DP_TSML101)=TRUE)) -> TRUE
B134: V_TSM0290 | C134: Sect 1a Q1L3 and Sect 2 Q4d CH01 (2) Combined | D134: Q4d CH01 (2) Combined must be completed if Section 1a Q1 indicates your are reporting TSMs for LCRA and LCHO dwellings on a combined basis . Otherwise it should be left blank | F134: Hard | H134: =OR(AND('Sect 1a - Background'!DP_TSML003="Yes",ISBLANK('Sect 2 - Published TSMs'!DP_TSML102)=FALSE),AND('Sect 1a - Background'!DP_TSML003="No",ISBLANK('Sect 2 - Published TSMs'!DP_TSML102)=TRUE)) -> FALSE
B135: V_TSM0291 | C135: Sect 1a Q1L1 and Sect 2 Q4d CH02 (1) LCRA | D135: Q4d CH02 (1) LCRA must be completed if Section 1a Q1 indicates your are reporting TSMs for LCRA dwellings . Otherwise it should be left blank | F135: Hard | H135: =OR(AND('Sect 1a - Background'!DP_TSML001="Yes",ISBLANK('Sect 2 - Published TSMs'!DP_TSML103)=FALSE),AND('Sect 1a - Background'!DP_TSML001="No",ISBLANK('Sect 2 - Published TSMs'!DP_TSML103)=TRUE)) -> TRUE
B136: V_TSM0292 | C136: Sect 1a Q1L2 and Sect 2 Q4d CH02 (1) LCHO | D136: Q4d CH02 (1) LCHO must be completed if Section 1a Q1 indicates your are reporting TSMs for LCHO dwellings . Otherwise it should be left blank | F136: Hard | H136: =OR(AND('Sect 1a - Background'!DP_TSML002="Yes",ISBLANK('Sect 2 - Published TSMs'!DP_TSML104)=FALSE),AND('Sect 1a - Background'!DP_TSML002="No",ISBLANK('Sect 2 - Published TSMs'!DP_TSML104)=TRUE)) -> TRUE
B137: V_TSM0293 | C137: Sect 1a Q1L3 and Sect 2 Q4d CH02 (1) Combined | D137: Q4d CH02 (1) Combined must be completed if Section 1a Q1 indicates your are reporting TSMs for LCRA and LCHO dwellings on a combined basis . Otherwise it should be left blank | F137: Hard | H137: =OR(AND('Sect 1a - Background'!DP_TSML003="Yes",ISBLANK('Sect 2 - Published TSMs'!DP_TSML105)=FALSE),AND('Sect 1a - Background'!DP_TSML003="No",ISBLANK('Sect 2 - Published TSMs'!DP_TSML105)=TRUE)) -> FALSE
B138: V_TSM0294 | C138: Sect 1a Q1L1 and Sect 2 Q4d CH02 (2) LCRA | D138: Q4d CH02 (2) LCRA must be completed if Section 1a Q1 indicates your are reporting TSMs for LCRA dwellings . Otherwise it should be left blank | F138: Hard | H138: =OR(AND('Sect 1a - Background'!DP_TSML001="Yes",ISBLANK('Sect 2 - Published TSMs'!DP_TSML106)=FALSE),AND('Sect 1a - Background'!DP_TSML001="No",ISBLANK('Sect 2 - Published TSMs'!DP_TSML106)=TRUE)) -> TRUE
B139: V_TSM0295 | C139: Sect 1a Q1L2 and Sect 2 Q4d CH02 (2) LCHO | D139: Q4d CH02 (2) LCHO must be completed if Section 1a Q1 indicates your are reporting TSMs for LCHO dwellings . Otherwise it should be left blank | F139: Hard | H139: =OR(AND('Sect 1a - Background'!DP_TSML002="Yes",ISBLANK('Sect 2 - Published TSMs'!DP_TSML107)=FALSE),AND('Sect 1a - Background'!DP_TSML002="No",ISBLANK('Sect 2 - Published TSMs'!DP_TSML107)=TRUE)) -> TRUE
B140: V_TSM0296 | C140: Sect 1a Q1L3 and Sect 2 Q4d CH02 (2) Combined | D140: Q4d CH02 (2) Combined must be completed if Section 1a Q1 indicates your are reporting TSMs for LCRA and LCHO dwellings on a combined basis . Otherwise it should be left blank | F140: Hard | H140: =OR(AND('Sect 1a - Background'!DP_TSML003="Yes",ISBLANK('Sect 2 - Published TSMs'!DP_TSML108)=FALSE),AND('Sect 1a - Background'!DP_TSML003="No",ISBLANK('Sect 2 - Published TSMs'!DP_TSML108)=TRUE)) -> FALSE
B141: V_TSM0297 | C141: Sect 1a Q1L1 and Sect 2 Q4e TP01 LCRA | D141: Q4e TP01 LCRA must be completed if Section 1a Q1 indicates your are reporting TSMs for LCRA dwellings . Otherwise it should be left blank | F141: Hard | H141: =OR(AND('Sect 1a - Background'!DP_TSML001="Yes",ISBLANK('Sect 2 - Published TSMs'!DP_TSML109)=FALSE),AND('Sect 1a - Background'!DP_TSML001="No",ISBLANK('Sect 2 - Published TSMs'!DP_TSML109)=TRUE)) -> TRUE
B142: V_TSM0298 | C142: Sect 1a Q1L2 and Sect 2 Q4e TP01 LCHO | D142: Q4e TP01 LCHO must be completed if Section 1a Q1 indicates your are reporting TSMs for LCHO dwellings . Otherwise it should be left blank | F142: Hard | H142: =OR(AND('Sect 1a - Background'!DP_TSML002="Yes",ISBLANK('Sect 2 - Published TSMs'!DP_TSML110)=FALSE),AND('Sect 1a - Background'!DP_TSML002="No",ISBLANK('Sect 2 - Published TSMs'!DP_TSML110)=TRUE)) -> TRUE
B143: V_TSM0299 | C143: Sect 1a Q1L3 and Sect 2 Q4e TP01 Combined | D143: Q4e TP01 Combined must be completed if Section 1a Q1 indicates your are reporting TSMs for LCRA and LCHO dwellings on a combined basis . Otherwise it should be left blank | F143: Hard | H143: =OR(AND('Sect 1a - Background'!DP_TSML003="Yes",ISBLANK('Sect 2 - Published TSMs'!DP_TSML111)=FALSE),AND('Sect 1a - Background'!DP_TSML003="No",ISBLANK('Sect 2 - Published TSMs'!DP_TSML111)=TRUE)) -> FALSE
B144: V_TSM0300 | C144: Sect 1a Q1L1 and Sect 2 Q4e TP02 LCRA | D144: Q4e TP02 LCRA must be completed if Section 1a Q1 indicates your are reporting TSMs for LCRA dwellings . Otherwise it should be left blank | F144: Hard | H144: =OR(AND('Sect 1a - Background'!DP_TSML001="Yes",ISBLANK('Sect 2 - Published TSMs'!DP_TSML112)=FALSE),AND('Sect 1a - Background'!DP_TSML001="No",ISBLANK('Sect 2 - Published TSMs'!DP_TSML112)=TRUE)) -> TRUE
B145: V_TSM0301 | C145: Sect 1a Q1L2 and Sect 2 Q4e TP02 Combined | D145: Q4e TP02 Combined must be completed if Section 1a Q1 indicates your are reporting TSMs for LCRA and LCHO dwellings on a combined basis . Otherwise it should be left blank | F145: Hard | H145: =OR(AND('Sect 1a - Background'!DP_TSML003="Yes",ISBLANK('Sect 2 - Published TSMs'!DP_TSML113)=FALSE),AND('Sect 1a - Background'!DP_TSML003="No",ISBLANK('Sect 2 - Published TSMs'!DP_TSML113)=TRUE)) -> FALSE
B146: V_TSM0302 | C146: Sect 1a Q1L1 and Sect 2 Q4e TP03 LCRA | D146: Q4e TP03 LCRA must be completed if Section 1a Q1 indicates your are reporting TSMs for LCRA dwellings . Otherwise it should be left blank | F146: Hard | H146: =OR(AND('Sect 1a - Background'!DP_TSML001="Yes",ISBLANK('Sect 2 - Published TSMs'!DP_TSML114)=FALSE),AND('Sect 1a - Background'!DP_TSML001="No",ISBLANK('Sect 2 - Published TSMs'!DP_TSML114)=TRUE)) -> TRUE
B147: V_TSM0303 | C147: Sect 1a Q1L3 and Sect 2 Q4e TP03 Combined | D147: Q4e TP03 Combined must be completed if Section 1a Q1 indicates your are reporting TSMs for LCRA and LCHO dwellings on a combined basis . Otherwise it should be left blank | F147: Hard | H147: =OR(AND('Sect 1a - Background'!DP_TSML003="Yes",ISBLANK('Sect 2 - Published TSMs'!DP_TSML115)=FALSE),AND('Sect 1a - Background'!DP_TSML003="No",ISBLANK('Sect 2 - Published TSMs'!DP_TSML115)=TRUE)) -> FALSE
B148: V_TSM0304 | C148: Sect 1a Q1L1 and Sect 2 Q4e TP04 LCRA | D148: Q4e TP04 LCRA must be completed if Section 1a Q1 indicates your are reporting TSMs for LCRA dwellings . Otherwise it should be left blank | F148: Hard | H148: =OR(AND('Sect 1a - Background'!DP_TSML001="Yes",ISBLANK('Sect 2 - Published TSMs'!DP_TSML116)=FALSE),AND('Sect 1a - Background'!DP_TSML001="No",ISBLANK('Sect 2 - Published TSMs'!DP_TSML116)=TRUE)) -> TRUE
B149: V_TSM0305 | C149: Sect 1a Q1L2 and Sect 2 Q4e TP04 Combined | D149: Q4e TP04 Combined must be completed if Section 1a Q1 indicates your are reporting TSMs for LCRA and LCHO dwellings on a combined basis . Otherwise it should be left blank | F149: Hard | H149: =OR(AND('Sect 1a - Background'!DP_TSML003="Yes",ISBLANK('Sect 2 - Published TSMs'!DP_TSML117)=FALSE),AND('Sect 1a - Background'!DP_TSML003="No",ISBLANK('Sect 2 - Published TSMs'!DP_TSML117)=TRUE)) -> FALSE
B150: V_TSM0306 | C150: Sect 1a Q1L1 and Sect 2 Q4e TP05 LCRA | D150: Q4e TP05 LCRA must be completed if Section 1a Q1 indicates your are reporting TSMs for LCRA dwellings . Otherwise it should be left blank | F150: Hard | H150: =OR(AND('Sect 1a - Background'!DP_TSML001="Yes",ISBLANK('Sect 2 - Published TSMs'!DP_TSML118)=FALSE),AND('Sect 1a - Background'!DP_TSML001="No",ISBLANK('Sect 2 - Published TSMs'!DP_TSML118)=TRUE)) -> TRUE
B151: V_TSM0307 | C151: Sect 1a Q1L1 and Sect 2 Q4e TP05 LCHO | D151: Q4e TP05 LCHO must be completed if Section 1a Q1 indicates your are reporting TSMs for LCHO dwellings . Otherwise it should be left blank | F151: Hard | H151: =OR(AND('Sect 1a - Background'!DP_TSML002="Yes",ISBLANK('Sect 2 - Published TSMs'!DP_TSML119)=FALSE),AND('Sect 1a - Background'!DP_TSML002="No",ISBLANK('Sect 2 - Published TSMs'!DP_TSML119)=TRUE)) -> TRUE
B152: V_TSM0308 | C152: Sect 1a Q1L1 and Sect 2 Q4e TP05 Combined | D152: Q4e TP05 Combined must be completed if Section 1a Q1 indicates your are reporting TSMs for LCRA and LCHO dwellings on a combined basis . Otherwise it should be left blank | F152: Hard | H152: =OR(AND('Sect 1a - Background'!DP_TSML003="Yes",ISBLANK('Sect 2 - Published TSMs'!DP_TSML120)=FALSE),AND('Sect 1a - Background'!DP_TSML003="No",ISBLANK('Sect 2 - Published TSMs'!DP_TSML120)=TRUE)) -> FALSE
B153: V_TSM0309 | C153: Sect 1a Q1L1 and Sect 2 Q4e TP06 LCRA | D153: Q4e TP06 LCRA must be completed if Section 1a Q1 indicates your are reporting TSMs for LCRA dwellings . Otherwise it should be left blank | F153: Hard | H153: =OR(AND('Sect 1a - Background'!DP_TSML001="Yes",ISBLANK('Sect 2 - Published TSMs'!DP_TSML121)=FALSE),AND('Sect 1a - Background'!DP_TSML001="No",ISBLANK('Sect 2 - Published TSMs'!DP_TSML121)=TRUE)) -> TRUE
B154: V_TSM0310 | C154: Sect 1a Q1L1 and Sect 2 Q4e TP06 LCHO | D154: Q4e TP06 LCHO must be completed if Section 1a Q1 indicates your are reporting TSMs for LCHO dwellings . Otherwise it should be left blank | F154: Hard | H154: =OR(AND('Sect 1a - Background'!DP_TSML002="Yes",ISBLANK('Sect 2 - Published TSMs'!DP_TSML122)=FALSE),AND('Sect 1a - Background'!DP_TSML002="No",ISBLANK('Sect 2 - Published TSMs'!DP_TSML122)=TRUE)) -> TRUE
B155: V_TSM0311 | C155: Sect 1a Q1L1 and Sect 2 Q4e TP06 Combined | D155: Q4e TP06 Combined must be completed if Section 1a Q1 indicates your are reporting TSMs for LCRA and LCHO dwellings on a combined basis . Otherwise it should be left blank | F155: Hard | H155: =OR(AND('Sect 1a - Background'!DP_TSML003="Yes",ISBLANK('Sect 2 - Published TSMs'!DP_TSML123)=FALSE),AND('Sect 1a - Background'!DP_TSML003="No",ISBLANK('Sect 2 - Published TSMs'!DP_TSML123)=TRUE)) -> FALSE
B156: V_TSM0312 | C156: Sect 1a Q1L1 and Sect 2 Q4e TP07 LCRA | D156: Q4e TP07 LCRA must be completed if Section 1a Q1 indicates your are reporting TSMs for LCRA dwellings . Otherwise it should be left blank | F156: Hard | H156: =OR(AND('Sect 1a - Background'!DP_TSML001="Yes",ISBLANK('Sect 2 - Published TSMs'!DP_TSML124)=FALSE),AND('Sect 1a - Background'!DP_TSML001="No",ISBLANK('Sect 2 - Published TSMs'!DP_TSML124)=TRUE)) -> TRUE
B157: V_TSM0313 | C157: Sect 1a Q1L1 and Sect 2 Q4e TP07 LCHO | D157: Q4e TP07 LCHO must be completed if Section 1a Q1 indicates your are reporting TSMs for LCHO dwellings . Otherwise it should be left blank | F157: Hard | H157: =OR(AND('Sect 1a - Background'!DP_TSML002="Yes",ISBLANK('Sect 2 - Published TSMs'!DP_TSML125)=FALSE),AND('Sect 1a - Background'!DP_TSML002="No",ISBLANK('Sect 2 - Published TSMs'!DP_TSML125)=TRUE)) -> TRUE
B158: V_TSM0314 | C158: Sect 1a Q1L1 and Sect 2 Q4e TP07 Combined | D158: Q4e TP07 Combined must be completed if Section 1a Q1 indicates your are reporting TSMs for LCRA and LCHO dwellings on a combined basis . Otherwise it should be left blank | F158: Hard | H158: =OR(AND('Sect 1a - Background'!DP_TSML003="Yes",ISBLANK('Sect 2 - Published TSMs'!DP_TSML126)=FALSE),AND('Sect 1a - Background'!DP_TSML003="No",ISBLANK('Sect 2 - Published TSMs'!DP_TSML126)=TRUE)) -> FALSE
B159: V_TSM0315 | C159: Sect 1a Q1L1 and Sect 2 Q4e TP08 LCRA | D159: Q4e TP08 LCRA must be completed if Section 1a Q1 indicates your are reporting TSMs for LCRA dwellings . Otherwise it should be left blank | F159: Hard | H159: =OR(AND('Sect 1a - Background'!DP_TSML001="Yes",ISBLANK('Sect 2 - Published TSMs'!DP_TSML127)=FALSE),AND('Sect 1a - Background'!DP_TSML001="No",ISBLANK('Sect 2 - Published TSMs'!DP_TSML127)=TRUE)) -> TRUE
B160: V_TSM0316 | C160: Sect 1a Q1L1 and Sect 2 Q4e TP08 LCHO | D160: Q4e TP08 LCHO must be completed if Section 1a Q1 indicates your are reporting TSMs for LCHO dwellings . Otherwise it should be left blank | F160: Hard | H160: =OR(AND('Sect 1a - Background'!DP_TSML002="Yes",ISBLANK('Sect 2 - Published TSMs'!DP_TSML128)=FALSE),AND('Sect 1a - Background'!DP_TSML002="No",ISBLANK('Sect 2 - Published TSMs'!DP_TSML128)=TRUE)) -> TRUE
B161: V_TSM0317 | C161: Sect 1a Q1L1 and Sect 2 Q4e TP08 Combined | D161: Q4e TP08 Combined must be completed if Section 1a Q1 indicates your are reporting TSMs for LCRA and LCHO dwellings on a combined basis . Otherwise it should be left blank | F161: Hard | H161: =OR(AND('Sect 1a - Background'!DP_TSML003="Yes",ISBLANK('Sect 2 - Published TSMs'!DP_TSML129)=FALSE),AND('Sect 1a - Background'!DP_TSML003="No",ISBLANK('Sect 2 - Published TSMs'!DP_TSML129)=TRUE)) -> FALSE
B162: V_TSM0318 | C162: Sect 1a Q1L1 and Sect 2 Q4e TP09 LCRA | D162: Q4e TP09 LCRA must be completed if Section 1a Q1 indicates your are reporting TSMs for LCRA dwellings . Otherwise it should be left blank | F162: Hard | H162: =OR(AND('Sect 1a - Background'!DP_TSML001="Yes",ISBLANK('Sect 2 - Published TSMs'!DP_TSML130)=FALSE),AND('Sect 1a - Background'!DP_TSML001="No",ISBLANK('Sect 2 - Published TSMs'!DP_TSML130)=TRUE)) -> TRUE
B163: V_TSM0319 | C163: Sect 1a Q1L1 and Sect 2 Q4e TP09 LCHO | D163: Q4e TP09 LCHO must be completed if Section 1a Q1 indicates your are reporting TSMs for LCHO dwellings . Otherwise it should be left blank | F163: Hard | H163: =OR(AND('Sect 1a - Background'!DP_TSML002="Yes",ISBLANK('Sect 2 - Published TSMs'!DP_TSML131)=FALSE),AND('Sect 1a - Background'!DP_TSML002="No",ISBLANK('Sect 2 - Published TSMs'!DP_TSML131)=TRUE)) -> TRUE
B164: V_TSM0320 | C164: Sect 1a Q1L1 and Sect 2 Q4e TP09 Combined | D164: Q4e TP09 Combined must be completed if Section 1a Q1 indicates your are reporting TSMs for LCRA and LCHO dwellings on a combined basis . Otherwise it should be left blank | F164: Hard | H164: =OR(AND('Sect 1a - Background'!DP_TSML003="Yes",ISBLANK('Sect 2 - Published TSMs'!DP_TSML132)=FALSE),AND('Sect 1a - Background'!DP_TSML003="No",ISBLANK('Sect 2 - Published TSMs'!DP_TSML132)=TRUE)) -> FALSE
B165: V_TSM0321 | C165: Sect 1a Q1L1 and Sect 2 Q4e TP10 LCRA | D165: Q4e TP10 LCRA must be completed if Section 1a Q1 indicates your are reporting TSMs for LCRA dwellings . Otherwise it should be left blank | F165: Hard | H165: =OR(AND('Sect 1a - Background'!DP_TSML001="Yes",ISBLANK('Sect 2 - Published TSMs'!DP_TSML133)=FALSE),AND('Sect 1a - Background'!DP_TSML001="No",ISBLANK('Sect 2 - Published TSMs'!DP_TSML133)=TRUE)) -> TRUE
B166: V_TSM0322 | C166: Sect 1a Q1L1 and Sect 2 Q4e TP10 LCHO | D166: Q4e TP10 LCHO must be completed if Section 1a Q1 indicates your are reporting TSMs for LCHO dwellings . Otherwise it should be left blank | F166: Hard | H166: =OR(AND('Sect 1a - Background'!DP_TSML002="Yes",ISBLANK('Sect 2 - Published TSMs'!DP_TSML134)=FALSE),AND('Sect 1a - Background'!DP_TSML002="No",ISBLANK('Sect 2 - Published TSMs'!DP_TSML134)=TRUE)) -> TRUE
B167: V_TSM0323 | C167: Sect 1a Q1L1 and Sect 2 Q4e TP10 Combined | D167: Q4e TP10 Combined must be completed if Section 1a Q1 indicates your are reporting TSMs for LCRA and LCHO dwellings on a combined basis . Otherwise it should be left blank | F167: Hard | H167: =OR(AND('Sect 1a - Background'!DP_TSML003="Yes",ISBLANK('Sect 2 - Published TSMs'!DP_TSML135)=FALSE),AND('Sect 1a - Background'!DP_TSML003="No",ISBLANK('Sect 2 - Published TSMs'!DP_TSML135)=TRUE)) -> FALSE
B168: V_TSM0324 | C168: Sect 1a Q1L1 and Sect 2 Q4e TP11 LCRA | D168: Q4e TP11 LCRA must be completed if Section 1a Q1 indicates your are reporting TSMs for LCRA dwellings . Otherwise it should be left blank | F168: Hard | H168: =OR(AND('Sect 1a - Background'!DP_TSML001="Yes",ISBLANK('Sect 2 - Published TSMs'!DP_TSML136)=FALSE),AND('Sect 1a - Background'!DP_TSML001="No",ISBLANK('Sect 2 - Published TSMs'!DP_TSML136)=TRUE)) -> TRUE
B169: V_TSM0325 | C169: Sect 1a Q1L1 and Sect 2 Q4e TP11 LCHO | D169: Q4e TP11 LCHO must be completed if Section 1a Q1 indicates your are reporting TSMs for LCHO dwellings . Otherwise it should be left blank | F169: Hard | H169: =OR(AND('Sect 1a - Background'!DP_TSML002="Yes",ISBLANK('Sect 2 - Published TSMs'!DP_TSML137)=FALSE),AND('Sect 1a - Background'!DP_TSML002="No",ISBLANK('Sect 2 - Published TSMs'!DP_TSML137)=TRUE)) -> TRUE
B170: V_TSM0326 | C170: Sect 1a Q1L1 and Sect 2 Q4e TP11 Combined | D170: Q4e TP11 Combined must be completed if Section 1a Q1 indicates your are reporting TSMs for LCRA and LCHO dwellings on a combined basis . Otherwise it should be left blank | F170: Hard | H170: =OR(AND('Sect 1a - Background'!DP_TSML003="Yes",ISBLANK('Sect 2 - Published TSMs'!DP_TSML138)=FALSE),AND('Sect 1a - Background'!DP_TSML003="No",ISBLANK('Sect 2 - Published TSMs'!DP_TSML138)=TRUE)) -> FALSE
B171: V_TSM0327 | C171: Sect 1a Q1L1 and Sect 2 Q4e TP12 LCRA | D171: Q4e TP12 LCRA must be completed if Section 1a Q1 indicates your are reporting TSMs for LCRA dwellings . Otherwise it should be left blank | F171: Hard | H171: =OR(AND('Sect 1a - Background'!DP_TSML001="Yes",ISBLANK('Sect 2 - Published TSMs'!DP_TSML139)=FALSE),AND('Sect 1a - Background'!DP_TSML001="No",ISBLANK('Sect 2 - Published TSMs'!DP_TSML139)=TRUE)) -> TRUE
B172: V_TSM0328 | C172: Sect 1a Q1L1 and Sect 2 Q4e TP12 LCHO | D172: Q4e TP12 LCHO must be completed if Section 1a Q1 indicates your are reporting TSMs for LCHO dwellings . Otherwise it should be left blank | F172: Hard | H172: =OR(AND('Sect 1a - Background'!DP_TSML002="Yes",ISBLANK('Sect 2 - Published TSMs'!DP_TSML140)=FALSE),AND('Sect 1a - Background'!DP_TSML002="No",ISBLANK('Sect 2 - Published TSMs'!DP_TSML140)=TRUE)) -> TRUE
B173: V_TSM0329 | C173: Sect 1a Q1L1 and Sect 2 Q4e TP12 Combined | D173: Q4e TP12 Combined must be completed if Section 1a Q1 indicates your are reporting TSMs for LCRA and LCHO dwellings on a combined basis . Otherwise it should be left blank | F173: Hard | H173: =OR(AND('Sect 1a - Background'!DP_TSML003="Yes",ISBLANK('Sect 2 - Published TSMs'!DP_TSML141)=FALSE),AND('Sect 1a - Background'!DP_TSML003="No",ISBLANK('Sect 2 - Published TSMs'!DP_TSML141)=TRUE)) -> FALSE
B174: V_TSM0330 | C174: Sect 4 Q2a | D174: Q2a is an optional question. We note that you have entered '0'. If you do not want to report the number of stage one complaints resopnded to within the timecales without the use of extensions please leave this field blank. However, if '0' is the number of stage one complaints reponded to then you can ignore this validation. | F174: Soft | H174: =OR(ISBLANK('Sect 4 - TSMs reported for LCRA'!DP_TSML183)=TRUE,'Sect 4 - TSMs reported for LCRA'!DP_TSML183<>0) -> TRUE
B175: V_TSM0331 | C175: Sect 4 Q2b | D175: Q2b is an optional question. We note that you have entered '0'. If you do not want to report the number of stage one complaints resopnded to within the timecales without the use of extensions please leave this field blank. However, if '0' is the number of stage one complaints reponded to then you can ignore this validation. | F175: Soft | H175: =OR(ISBLANK('Sect 4 - TSMs reported for LCRA'!DP_TSML184)=TRUE,'Sect 4 - TSMs reported for LCRA'!DP_TSML183<>0) -> TRUE
B176: V_TSM0332 | C176: Sect 4 Q3 CH01 (2) | D176: Please check that you have entered the numerator and denominator for this Q3 L1 correctly. | F176: Hard | H176: ='Sect 4 - TSMs reported for LCRA'!DP_TSML186<='Sect 4 - TSMs reported for LCRA'!DP_TSML187 -> TRUE
B177: V_TSM0333 | C177: Sect 4 Q3 CH02 (2) | D177: Please check that you have entered the numerator and denominator for this Q3 L2 correctly. | F177: Hard | H177: ='Sect 4 - TSMs reported for LCRA'!DP_TSML189<='Sect 4 - TSMs reported for LCRA'!DP_TSML190 -> TRUE
B178: V_TSM0334 | C178: Sect 4 Q4a | D178: Q4a is an optional question. We note that you have entered '0'. If you do not want to report the number of stage one complaints resopnded to within the timecales without the use of extensions please leave this field blank. However, if '0' is the number of stage one complaints reponded to then you can ignore this validation. | F178: Soft | H178: =OR(ISBLANK('Sect 4 - TSMs reported for LCRA'!DP_TSML191)=TRUE,'Sect 4 - TSMs reported for LCRA'!DP_TSML191<>0) -> TRUE
B179: V_TSM0335 | C179: Sect 4 Q4b | D179: Q4b is an optional question. We note that you have entered '0'. If you do not want to report the number of stage one complaints resopnded to within the timecales without the use of extensions please leave this field blank. However, if '0' is the number of stage one complaints reponded to then you can ignore this validation. | F179: Soft | H179: =OR(ISBLANK('Sect 4 - TSMs reported for LCRA'!DP_TSML192)=TRUE,'Sect 4 - TSMs reported for LCRA'!DP_TSML192<>0) -> TRUE
B180: V_TSM0336 | C180: Sect 4 Q5b | D180: If your response to Q5a is "No", please provide details of the maximum timescales used in Q5b, otherwise leave Q5b blank. If you need to bring something to the attention of RSH then please upload a supporting document. | F180: Soft | H180: =OR(AND('Sect 4 - TSMs reported for LCRA'!DP_TSML193="No",ISBLANK('Sect 4 - TSMs reported for LCRA'!DP_TSML194)=FALSE),AND('Sect 4 - TSMs reported for LCRA'!DP_TSML193="Yes",ISBLANK('Sect 4 - TSMs reported for LCRA'!DP_TSML194)=TRUE),AND(ISBLANK('Sect 4 - TSMs reported for LCRA'!DP_TSML193)=TRUE,ISBLANK('Sect 4 - TSMs reported for LCRA'!DP_TSML194)=TRUE)) -> TRUE
B181: V_TSM0337 | C181: Sect 4 Q1 CH01 (1) denominator | D181: Please check the denominator reported for CH01 (1). | F181: Soft | H181: =OR('Sect 4 - TSMs reported for LCRA'!DP_TSML179<=200000,ISBLANK('Sect 4 - TSMs reported for LCRA'!DP_TSML179)=TRUE) -> TRUE
B182: V_TSM0338 | C182: Sect 4 Q1 CH02 (1) denominator | D182: Please check the denominator reported for CH02 (1). The denominator should be the number of stage one complaints. | F182: Soft | H182: =OR('Sect 4 - TSMs reported for LCRA'!DP_TSML182='Sect 4 - TSMs reported for LCRA'!DP_TSML178,AND('Sect 4 - TSMs reported for LCRA'!DP_TSML182=0,'Sect 4 - TSMs reported for LCRA'!DP_TSML178=0)) -> TRUE
B183: V_TSM0339 | C183: Sect 4 Q3 CH01 (2) denominator | D183: Please check the denominator reported for CH01 (2). The denominator should be the number of dwellings owned. | F183: Soft | H183: =OR('Sect 4 - TSMs reported for LCRA'!DP_TSML187<=200000,ISBLANK('Sect 4 - TSMs reported for LCRA'!DP_TSML187)=TRUE) -> TRUE
B184: V_TSM0340 | C184: Sect 4 Q3 CH02 (2) denominator | D184: Please check the denominator reported for CH02 (2). The denominator should be the number of stage two complaints. | F184: Soft | H184: =OR('Sect 4 - TSMs reported for LCRA'!DP_TSML190='Sect 4 - TSMs reported for LCRA'!DP_TSML186,AND('Sect 4 - TSMs reported for LCRA'!DP_TSML190=0,'Sect 4 - TSMs reported for LCRA'!DP_TSML186=0)) -> TRUE
B185: V_TSM0341 | C185: Sect 4 Q6 TP01 | D185: Please check that you have entered the correct values in Section 4 Q6 for TP01 and that the value for TP01 as reported in section 2 Q4e column 1 is also correct. | F185: Soft | H185: =AND('Sect 4 - TSMs reported for LCRA'!DP_TSML201>='Sect 2 - Published TSMs'!DP_TSML109-1,'Sect 4 - TSMs reported for LCRA'!DP_TSML201<='Sect 2 - Published TSMs'!DP_TSML109+1) -> TRUE
B186: V_TSM0393 | C186: Sect 4 Q6 TP02 | D186: Please check that you have entered the correct values in Section 4 Q6 for TP02 and that the value for TP02 as reported in section 2 Q4e column 1 is also correct. | F186: Soft | H186: =AND('Sect 4 - TSMs reported for LCRA'!DP_TSML210>='Sect 2 - Published TSMs'!DP_TSML112-1,'Sect 4 - TSMs reported for LCRA'!DP_TSML210<='Sect 2 - Published TSMs'!DP_TSML112+1) -> TRUE
B187: V_TSM0394 | C187: Sect 4 Q6 TP03 | D187: Please check that you have entered the correct values in Section 4 Q6 for TP03 and that the value for TP03 as reported in section 2 Q4e column 1 is also correct. | F187: Soft | H187: =AND('Sect 4 - TSMs reported for LCRA'!DP_TSML219>='Sect 2 - Published TSMs'!DP_TSML114-1,'Sect 4 - TSMs reported for LCRA'!DP_TSML219<='Sect 2 - Published TSMs'!DP_TSML114+1) -> TRUE
B188: V_TSM0395 | C188: Sect 4 Q6 TP04 | D188: Please check that you have entered the correct values in Section 4 Q6 for TP04 and that the value for TP04 as reported in section 2 Q4e column 1 is also correct. | F188: Soft | H188: =AND('Sect 4 - TSMs reported for LCRA'!DP_TSML226>='Sect 2 - Published TSMs'!DP_TSML116-1,'Sect 4 - TSMs reported for LCRA'!DP_TSML226<='Sect 2 - Published TSMs'!DP_TSML116+1) -> TRUE
B189: V_TSM0396 | C189: Sect 4 Q6 TP05 | D189: Please check that you have entered the correct values in Section 4 Q6 for TP05 and that the value for TP05 as reported in section 2 Q4e column 1 is also correct. | F189: Soft | H189: =AND('Sect 4 - TSMs reported for LCRA'!DP_TSML233>='Sect 2 - Published TSMs'!DP_TSML118-1,'Sect 4 - TSMs reported for LCRA'!DP_TSML233<='Sect 2 - Published TSMs'!DP_TSML118+1) -> TRUE
B190: V_TSM0397 | C190: Sect 4 Q6 TP06 | D190: Please check that you have entered the correct values in Section 4 Q6 for TP06 and that the value for TP06 as reported in section 2 Q4e column 1 is also correct. | F190: Soft | H190: =AND('Sect 4 - TSMs reported for LCRA'!DP_TSML240>='Sect 2 - Published TSMs'!DP_TSML121-1,'Sect 4 - TSMs reported for LCRA'!DP_TSML240<='Sect 2 - Published TSMs'!DP_TSML121+1) -> TRUE
B191: V_TSM0398 | C191: Sect 4 Q6 TP07 | D191: Please check that you have entered the correct values in Section 4 Q6 for TP07 and that the value for TP07 as reported in section 2 Q4e column 1 is also correct. | F191: Soft | H191: =AND('Sect 4 - TSMs reported for LCRA'!DP_TSML247>='Sect 2 - Published TSMs'!DP_TSML124-1,'Sect 4 - TSMs reported for LCRA'!DP_TSML247<='Sect 2 - Published TSMs'!DP_TSML124+1) -> TRUE
B192: V_TSM0399 | C192: Sect 4 Q6 TP08 | D192: Please check that you have entered the correct values in Section 4 Q6 for TP08 and that the value for TP08 as reported in section 2 Q4e column 1 is also correct. | F192: Soft | H192: =AND('Sect 4 - TSMs reported for LCRA'!DP_TSML254>='Sect 2 - Published TSMs'!DP_TSML127-1,'Sect 4 - TSMs reported for LCRA'!DP_TSML254<='Sect 2 - Published TSMs'!DP_TSML127+1) -> TRUE
B193: V_TSM0400 | C193: Sect 4 Q6 TP09 | D193: Please check that you have entered the correct values in Section 4 Q6 for TP09 and that the value for TP09 as reported in section 2 Q4e column 1 is also correct. | F193: Soft | H193: =AND('Sect 4 - TSMs reported for LCRA'!DP_TSML263>='Sect 2 - Published TSMs'!DP_TSML130-1,'Sect 4 - TSMs reported for LCRA'!DP_TSML263<='Sect 2 - Published TSMs'!DP_TSML130+1) -> TRUE
B194: V_TSM0401 | C194: Sect 4 Q6 TP10 | D194: Please check that you have entered the correct values in Section 4 Q6 for TP10 and that the value for TP10 as reported in section 2 Q4e column 1 is also correct. | F194: Soft | H194: =AND('Sect 4 - TSMs reported for LCRA'!DP_TSML272>='Sect 2 - Published TSMs'!DP_TSML133-1,'Sect 4 - TSMs reported for LCRA'!DP_TSML272<='Sect 2 - Published TSMs'!DP_TSML133+1) -> TRUE
B195: V_TSM0402 | C195: Sect 4 Q6 TP11 | D195: Please check that you have entered the correct values in Section 4 Q6 for TP11 and that the value for TP11 as reported in section 2 Q4e column 1 is also correct. | F195: Soft | H195: =AND('Sect 4 - TSMs reported for LCRA'!DP_TSML279>='Sect 2 - Published TSMs'!DP_TSML136-1,'Sect 4 - TSMs reported for LCRA'!DP_TSML279<='Sect 2 - Published TSMs'!DP_TSML136+1) -> TRUE
B196: V_TSM0403 | C196: Sect 4 Q6 TP12 | D196: Please check that you have entered the correct values in Section 4 Q6 for TP12 and that the value for TP12 as reported in section 2 Q4e column 1 is also correct. | F196: Soft | H196: =AND('Sect 4 - TSMs reported for LCRA'!DP_TSML286>='Sect 2 - Published TSMs'!DP_TSML139-1,'Sect 4 - TSMs reported for LCRA'!DP_TSML286<='Sect 2 - Published TSMs'!DP_TSML139+1) -> TRUE
B197: V_TSM0342 | C197: Sect 5 Q1 CH01(1) | D197: Please check that you have entered the numerator and denominator for this Q1 L1 correctly. | F197: Hard | H197: ='Sect 5 - TSMs reported for LCHO'!DP_TSML288<='Sect 5 - TSMs reported for LCHO'!DP_TSML289 -> TRUE
B198: V_TSM0343 | C198: Sect 5 Q1 CH02(1) | D198: Please check that you have entered the numerator and denominator for this Q1 L2 correctly. | F198: Hard | H198: ='Sect 5 - TSMs reported for LCHO'!DP_TSML291<='Sect 5 - TSMs reported for LCHO'!DP_TSML292 -> TRUE
B199: V_TSM0344 | C199: Sect 5 Q2a | D199: Q2a is an optional question. We note that you have entered '0'. If you do not want to report the number of stage one complaints resopnded to within the timecales without the use of extensions please leave this field blank. However, if '0' is the number of stage one complaints reponded to then you can ignore this validation. | F199: Soft | H199: =OR(AND(ISBLANK('Sect 5 - TSMs reported for LCHO'!DP_TSML293)=FALSE,'Sect 5 - TSMs reported for LCHO'!DP_TSML293<>0),ISBLANK('Sect 5 - TSMs reported for LCHO'!DP_TSML293)=TRUE) -> TRUE
B200: V_TSM0345 | C200: Sect 5 Q2b | D200: Q2b is an optional question. We note that you have entered '0'. If you do not want to report the number of stage one complaints resopnded to within the timecales with the use of extensions please leave this field blank. However, if '0' is the number of stage one complaints reponded to then you can ignore this validation. | F200: Soft | H200: =OR(AND(ISBLANK('Sect 5 - TSMs reported for LCHO'!DP_TSML294)=FALSE,'Sect 5 - TSMs reported for LCHO'!DP_TSML294<>0),ISBLANK('Sect 5 - TSMs reported for LCHO'!DP_TSML294)=TRUE) -> TRUE
B201: V_TSM0346 | C201: Sect 5 Q3 CH01 (2) | D201: Please check that you have entered the numerator and denominator for this Q3 L1 correctly. | F201: Hard | H201: ='Sect 5 - TSMs reported for LCHO'!DP_TSML296<='Sect 5 - TSMs reported for LCHO'!DP_TSML297 -> TRUE
... 235 more rows

Sheet Lists (hidden)
A1: Lists
A2: These are the list types for the current workbook. Include the values from which you want providers to choose below the name of the list.
A3: Blank items will be ignored - if you want to allow a blank entry edit the data dictionary so that the data point allows nulls.
A5: Approach | B5: CensusSample | C5: Coverage | D5: Supportingdoc | E5: Supportingdoc2 | F5: Weighting | G5: YesNo | H5: ConfirmWeighted
A6: Single point in time | B6: Census | C6: LCRA - section 4 | D6: Yes - I have uploaded the supporting documentation | F6: Age of respondent | G6: Yes | H6: Weighted
A7: Phased approach | B7: Sample | C7: LCHO - section 5 | D7: No - I have not uploaded the supporting documentation | E7: Yes - I have uploaded a supporting document | F7: Building type | G7: No | H7: Unweighted
A8: Rolling survey | C8: Combined - section 6 | E8: No - I have not uploaded a supporting document | F8: Entity
F9: Ethnicity of respondent
F10: Geographical area
F11: Household size
F12: Property size
F13: Stock type
F14: Other (specify in Q15b)

Sheet DimensionalMembers (hidden)
A1: DIM_Year | B1: 2022 | C1: 2023 | D1: 2024 | E1: 2025 | F1: 2026 | G1: 2027 | H1: 2028 | I1: 2029 | J1: 2030 | K1: 2031 | L1: 2032 | M1: 2033 | N1: 2034 | O1: 2035 | P1: 2036 | Q1: 2037 | R1: 2038 | S1: 2039 | T1: 2040 | U1: 2041 | V1: 2042 | W1: 2043 | X1: 2044 | Y1: 2045 | Z1: 2046 | AA1: 2047 | AB1: 2048 | AC1: 2049 | AD1: 2050 | AE1: 2051 | AF1: 2052 | AG1: 2053 | AH1: 2054 | AI1: 2055 | AJ1: 2056 | AK1: 2057 | AL1: 2058 | AM1: 2059 | AN1: 2060 | AO1: 2061 | AP1: 2062 | AQ1: 2063 | AR1: 2064 | AS1: 2065 | AT1: 2066 | AU1: 2067 | AV1: 2068 | AW1: 2069 | AX1: 2070 | AY1: 2071 | AZ1: 2072
A2: DIM_LA_Code | B2: Adur - E07000223 | C2: Amber Valley - E07000032 | D2: Arun - E07000224 | E2: Ashfield - E07000170 | F2: Ashford - E07000105 | G2: Babergh - E07000200 | H2: Barking and Dagenham - E09000002 | I2: Barnet - E09000003 | J2: Barnsley - E08000016 | K2: Basildon - E07000066 | L2: Basingstoke and Deane - E07000084 | M2: Bassetlaw - E07000171 | N2: Bath and North East Somerset - E06000022 | O2: Bedford - E06000055 | P2: Bexley - E09000004 | Q2: Birmingham - E08000025 | R2: Blaby - E07000129 | S2: Blackburn with Darwen - E06000008 | T2: Blackpool - E06000009 | U2: Bolsover - E07000033 | V2: Bolton - E08000001 | W2: Boston - E07000136 | X2: Bournemouth Christchurch and Poole - E06000058 | Y2: Bracknell Forest - E06000036 | Z2: Bradford - E08000032 | AA2: Braintree - E07000067 | AB2: Breckland - E07000143 | AC2: Brent - E09000005 | AD2: Brentwood - E07000068 | AE2: Brighton and Hove - E06000043 | AF2: Bristol, City of - E06000023 | AG2: Broadland - E07000144 | AH2: Bromley - E09000006 | AI2: Bromsgrove - E07000234 | AJ2: Broxbourne - E07000095 | AK2: Broxtowe - E07000172 | AL2: Buckinghamshire - E06000060 | AM2: Burnley - E07000117 | AN2: Bury - E08000002 | AO2: Calderdale - E08000033 | AP2: Cambridge - E07000008 | AQ2: Camden - E09000007 | AR2: Cannock Chase - E07000192 | AS2: Canterbury - E07000106 | AT2: Castle Point - E07000069 | AU2: Central Bedfordshire - E06000056 | AV2: Charnwood - E07000130 | AW2: Chelmsford - E07000070 | AX2: Cheltenham - E07000078 | AY2: Cherwell - E07000177 | AZ2: Cheshire East - E06000049 | BA2: Cheshire West and Chester - E06000050 | BB2: Chesterfield - E07000034 | BC2: Chichester - E07000225 | BD2: Chorley - E07000118 | BE2: City of London - E09000001 | BF2: Colchester - E07000071 | BG2: Cornwall - E06000052 | BH2: Cotswold - E07000079 | BI2: County Durham - E06000047 | BJ2: Coventry - E08000026 | BK2: Crawley - E07000226 | BL2: Croydon - E09000008 | BM2: Dacorum - E07000096 | BN2: Darlington - E06000005 | BO2: Dartford - E07000107 | BP2: Derby - E06000015 | BQ2: Derbyshire Dales - E07000035 | BR2: Doncaster - E08000017 | BS2: Dorset - E06000059 | BT2: Dover - E07000108 | BU2: Dudley - E08000027 | BV2: Ealing - E09000009 | BW2: East Cambridgeshire - E07000009 | BX2: East Devon - E07000040 | BY2: East Hampshire - E07000085 | BZ2: East Hertfordshire - E07000242 | CA2: East Lindsey - E07000137 | CB2: East Riding of Yorkshire - E06000011 | CC2: East Staffordshire - E07000193 | CD2: East Suffolk - E07000244 | CE2: Eastbourne - E07000061 | CF2: Eastleigh - E07000086 | CG2: Elmbridge - E07000207 | CH2: Enfield - E09000010 | CI2: Epping Forest - E07000072 | CJ2: Epsom and Ewell - E07000208 | CK2: Erewash - E07000036 | CL2: Exeter - E07000041 | CM2: Fareham - E07000087 | CN2: Fenland - E07000010 | CO2: Folkestone and Hythe - E07000112 | CP2: Forest of Dean - E07000080 | CQ2: Fylde - E07000119 | CR2: Gateshead - E08000037 | CS2: Gedling - E07000173 | CT2: Gloucester - E07000081 | CU2: Gosport - E07000088 | CV2: Gravesham - E07000109 | CW2: Great Yarmouth - E07000145 | CX2: Greenwich - E09000011 | CY2: Guildford - E07000209 | CZ2: Hackney - E09000012 | DA2: Halton - E06000006 | DB2: Hammersmith and Fulham - E09000013 | DC2: Harborough - E07000131 | DD2: Haringey - E09000014 | DE2: Harlow - E07000073 | DF2: Harrow - E09000015 | DG2: Hart - E07000089 | DH2: Hartlepool - E06000001 | DI2: Hastings - E07000062 | DJ2: Havant - E07000090 | DK2: Havering - E09000016 | DL2: Herefordshire, County of - E06000019 | DM2: Hertsmere - E07000098 | DN2: High Peak - E07000037 | DO2: Hillingdon - E09000017 | DP2: Hinckley and Bosworth - E07000132 | DQ2: Horsham - E07000227 | DR2: Hounslow - E09000018 | DS2: Huntingdonshire - E07000011 | DT2: Hyndburn - E07000120 | DU2: Ipswich - E07000202 | DV2: Isle of Wight - E06000046 | DW2: Isles of Scilly - E06000053 | DX2: Islington - E09000019 | DY2: Kensington and Chelsea - E09000020 | DZ2: King's Lynn and West Norfolk - E07000146 | EA2: Kingston upon Hull, City of - E06000010 | EB2: Kingston upon Thames - E09000021 | EC2: Kirklees - E08000034 | ED2: Knowsley - E08000011 | EE2: Lambeth - E09000022 | EF2: Lancaster - E07000121 | EG2: Leeds - E08000035 | EH2: Leicester - E06000016 | EI2: Lewes - E07000063 | EJ2: Lewisham - E09000023 | EK2: Lichfield - E07000194 | EL2: Lincoln - E07000138 | EM2: Liverpool - E08000012 | EN2: Luton - E06000032 | EO2: Maidstone - E07000110 | EP2: Maldon - E07000074 | EQ2: Malvern Hills - E07000235 | ER2: Manchester - E08000003 | ES2: Mansfield - E07000174 | ET2: Medway - E06000035 | EU2: Melton - E07000133 | EV2: Merton - E09000024 | EW2: Mid Devon - E07000042 | EX2: Mid Suffolk - E07000203 | EY2: Mid Sussex - E07000228 | EZ2: Middlesbrough - E06000002 | FA2: Milton Keynes - E06000042 | FB2: Mole Valley - E07000210 | FC2: New Forest - E07000091 | FD2: Newark and Sherwood - E07000175 | FE2: Newcastle upon Tyne - E08000021 | FF2: Newcastle-under-Lyme - E07000195 | FG2: Newham - E09000025 | FH2: North Devon - E07000043 | FI2: North East Derbyshire - E07000038 | FJ2: North East Lincolnshire - E06000012 | FK2: North Hertfordshire - E07000099 | FL2: North Kesteven - E07000139 | FM2: North Lincolnshire - E06000013 | FN2: North Norfolk - E07000147 | FO2: North Northamptonshire - E06000061 | FP2: North Somerset - E06000024 | FQ2: North Tyneside - E08000022 | FR2: North Warwickshire - E07000218 | FS2: North West Leicestershire - E07000134 | FT2: Northumberland - E06000057 | FU2: Norwich - E07000148 | FV2: Nottingham - E06000018 | FW2: Nuneaton and Bedworth - E07000219 | FX2: Oadby and Wigston - E07000135 | FY2: Oldham - E08000004 | FZ2: Oxford - E07000178 | GA2: Pendle - E07000122 | GB2: Peterborough - E06000031 | GC2: Plymouth - E06000026 | GD2: Portsmouth - E06000044 | GE2: Preston - E07000123 | GF2: Reading - E06000038 | GG2: Redbridge - E09000026 | GH2: Redcar and Cleveland - E06000003 | GI2: Redditch - E07000236 | GJ2: Reigate and Banstead - E07000211 | GK2: Ribble Valley - E07000124 | GL2: Richmond upon Thames - E09000027 | GM2: Rochdale - E08000005 | GN2: Rochford - E07000075 | GO2: Rossendale - E07000125 | GP2: Rother - E07000064 | GQ2: Rotherham - E08000018 | GR2: Rugby - E07000220 | GS2: Runnymede - E07000212 | GT2: Rushcliffe - E07000176 | GU2: Rushmoor - E07000092 | GV2: Rutland - E06000017 | GW2: Salford - E08000006 | GX2: Sandwell - E08000028 | GY2: Sefton - E08000014 | GZ2: Sevenoaks - E07000111 | HA2: Sheffield - E08000019 | HB2: Shropshire - E06000051 | HC2: Slough - E06000039 | HD2: Solihull - E08000029 | HE2: South Cambridgeshire - E07000012 | HF2: South Derbyshire - E07000039 | HG2: South Gloucestershire - E06000025 | HH2: South Hams - E07000044 | HI2: South Holland - E07000140 | HJ2: South Kesteven - E07000141 | HK2: South Norfolk - E07000149 | HL2: South Oxfordshire - E07000179 | HM2: South Ribble - E07000126 | HN2: South Staffordshire - E07000196 | HO2: South Tyneside - E08000023 | HP2: Southampton - E06000045 | HQ2: Southend-on-Sea - E06000033 | HR2: Southwark - E09000028 | HS2: Spelthorne - E07000213 | HT2: St Albans - E07000240 | HU2: St. Helens - E08000013 | HV2: Stafford - E07000197 | HW2: Staffordshire Moorlands - E07000198 | HX2: Stevenage - E07000243 | HY2: Stockport - E08000007 | HZ2: Stockton-on-Tees - E06000004 | IA2: Stoke-on-Trent - E06000021 | IB2: Stratford-on-Avon - E07000221 | IC2: Stroud - E07000082 | ID2: Sunderland - E08000024 | IE2: Surrey Heath - E07000214 | IF2: Sutton - E09000029 | IG2: Swale - E07000113 | IH2: Swindon - E06000030 | II2: Tameside - E08000008 | IJ2: Tamworth - E07000199 | IK2: Tandridge - E07000215 | IL2: Teignbridge - E07000045 | IM2: Telford and Wrekin - E06000020 | IN2: Tendring - E07000076 | IO2: Test Valley - E07000093 | IP2: Tewkesbury - E07000083 | IQ2: Thanet - E07000114 | IR2: Three Rivers - E07000102 | IS2: Thurrock - E06000034 | IT2: Tonbridge and Malling - E07000115 | IU2: Torbay - E06000027 | IV2: Torridge - E07000046 | IW2: Tower Hamlets - E09000030 | IX2: Trafford - E08000009 | IY2: Tunbridge Wells - E07000116 | IZ2: Uttlesford - E07000077 | JA2: Vale of White Horse - E07000180 | JB2: Wakefield - E08000036 | JC2: Walsall - E08000030 | JD2: Waltham Forest - E09000031 | JE2: Wandsworth - E09000032 | JF2: Warrington - E06000007 | JG2: Warwick - E07000222 | JH2: Watford - E07000103 | JI2: Waverley - E07000216 | JJ2: Wealden - E07000065 | JK2: Welwyn Hatfield - E07000241 | JL2: West Berkshire - E06000037 | JM2: West Devon - E07000047 | JN2: West Lancashire - E07000127 | JO2: West Lindsey - E07000142 | JP2: West Northamptonshire - E06000062 | JQ2: West Oxfordshire - E07000181 | JR2: West Suffolk - E07000245 | JS2: Westminster - E09000033 | JT2: Wigan - E08000010 | JU2: Wiltshire - E06000054 | JV2: Winchester - E07000094 | JW2: Windsor and Maidenhead - E06000040 | JX2: Wirral - E08000015 | JY2: Woking - E07000217 | JZ2: Wokingham - E06000041 | KA2: Wolverhampton - E08000031 | KB2: Worcester - E07000237 | KC2: Worthing - E07000229 | KD2: Wychavon - E07000238 | KE2: Wyre - E07000128 | KF2: Wyre Forest - E07000239 | KG2: York - E06000014 | KH2: Northern Ireland - N92000002 | KI2: Outside UK - 9300000XX | KJ2: Scotland - S92000003 | KK2: Wales - W92000004 | KL2: Cumberland - E06000063 | KM2: North Yorkshire - E06000065 | KN2: Somerset - E06000066 | KO2: Westmorland and Furness - E06000064
A3: DIM_Counter_Party | B3: abrdn (Standard Life Aberdeen) | C3: Affordable Housing Finance | D3: Allied Irish Banks | E3: Aviva | F3: Aviva (Friends Life) | G3: Babson Capital | H3: Bank of China | I3: Bank of Ireland | J3: Bank of New York Mellon | K3: Bank of Scotland | L3: Barclays | M3: BlackRock | N3: BNP Paribas | O3: CAF | P3: Canada Life | Q3: CCLA | R3: Charity Bank | S3: Close Brothers Group | T3: Clydesdale/Yorkshire Bank/Virgin Money | U3: The Co-operative Bank | V3: Credit Suisse | W3: Crown Mortgage Management | X3: Danske | Y3: Darlington BS | Z3: DB Life Insurance | AA3: Deutsche Bank | AB3: Dexia | AC3: EIB | AD3: Federated Prime Rate | AE3: Funding for Homes Ltd | AF3: GBSH | AG3: Goldman Sachs | AH3: HACO | AI3: HAF | AJ3: HALOS | AK3: Handelsbanken | AL3: Harbour | AM3: Haven | AN3: Helaba | AO3: HSBC | AP3: HSL | AQ3: Ignis | AR3: Investec Fund Managers | AS3: JPMorgan | AT3: Kent Reliance BS | AU3: Leeds BS | AV3: Legal & General | AW3: Lloyds | AX3: Local authority | AY3: M&G (Prudential) | AZ3: Macquarie | BA3: MetLife | BB3: Metro Bank | BC3: Millbank | BD3: Morgan Stanley | BE3: MORhomes | BF3: MUFG Bank (Mitsubishi) | BG3: My Home Finance | BH3: National Australia Bank Limited | BI3: Nationwide | BJ3: Newbury BS | BK3: Newcastle BS | BL3: Norwich & Peterborough BS | BM3: Orchardbrook | BN3: Own name bond - retail | BO3: Own name bond - wholesale | BP3: Pricoa/PGIM | BQ3: Reliance Bank | BR3: RBC | BS3: RBS/NatWest | BT3: Rothesay | BU3: RSL Finance | BV3: Saltaire Finance (Ara-Venn) | BW3: Santander | BX3: Scottish Widows | BY3: SMBC (Sumitomo Mitsui) | BZ3: Standard Chartered Bank | CA3: Suffolk Building Society (Ipswich) | CB3: SWIP AAA fund | CC3: THFC | CD3: Triodos | CE3: Unity Trust Bank | CF3: Wells Fargo | CG3: Yorkshire BS | CH3: ABN - Amro | CI3: First Abu Dhabi (FAB)
A4: DIM_Property_Size_4Bed | B4: Non-self-contained/Bedspace | C4: Bedsit | D4: 1 Bedroom | E4: 2 Bedroom | F4: 3 Bedroom | G4: 4+ Bedroom
A5: DIM_Property_Size_6Bed | B5: Non-self-contained/Bedspace | C5: Bedsit | D5: 1 Bedroom | E5: 2 Bedroom | F5: 3 Bedroom | G5: 4 Bedroom | H5: 5 Bedroom | I5: 6+ Bedroom
A6: DIM_Relative_Year | B6: Initial year | C6: Initial year + 1 | D6: Initial year + 2 | E6: Initial year + 3 | F6: Initial year + 4 | G6: Initial year + 5 | H6: Initial year + 6 | I6: Initial year + 7 | J6: Initial year + 8 | K6: Initial year + 9
A7: DIM_Sequence | B7: 1 | C7: 2 | D7: 3 | E7: 4 | F7: 5 | G7: 6 | H7: 7 | I7: 8 | J7: 9 | K7: 10 | L7: 11 | M7: 12 | N7: 13 | O7: 14 | P7: 15 | Q7: 16 | R7: 17 | S7: 18 | T7: 19 | U7: 20 | V7: 21 | W7: 22 | X7: 23 | Y7: 24 | Z7: 25 | AA7: 26 | AB7: 27 | AC7: 28 | AD7: 29 | AE7: 30 | AF7: 31 | AG7: 32 | AH7: 33 | AI7: 34 | AJ7: 35 | AK7: 36 | AL7: 37 | AM7: 38 | AN7: 39 | AO7: 40 | AP7: 41 | AQ7: 42 | AR7: 43 | AS7: 44 | AT7: 45 | AU7: 46 | AV7: 47 | AW7: 48 | AX7: 49 | AY7: 50 | AZ7: 51 | BA7: 52 | BB7: 53 | BC7: 54 | BD7: 55 | BE7: 56 | BF7: 57 | BG7: 58 | BH7: 59 | BI7: 60 | BJ7: 61 | BK7: 62 | BL7: 63 | BM7: 64 | BN7: 65 | BO7: 66 | BP7: 67 | BQ7: 68 | BR7: 69 | BS7: 70 | BT7: 71 | BU7: 72 | BV7: 73 | BW7: 74 | BX7: 75 | BY7: 76 | BZ7: 77 | CA7: 78 | CB7: 79 | CC7: 80 | CD7: 81 | CE7: 82 | CF7: 83 | CG7: 84 | CH7: 85 | CI7: 86 | CJ7: 87 | CK7: 88 | CL7: 89 | CM7: 90 | CN7: 91 | CO7: 92 | CP7: 93 | CQ7: 94 | CR7: 95 | CS7: 96 | CT7: 97 | CU7: 98 | CV7: 99 | CW7: 100 | CX7: 101 | CY7: 102 | CZ7: 103 | DA7: 104 | DB7: 105 | DC7: 106 | DD7: 107 | DE7: 108 | DF7: 109 | DG7: 110 | DH7: 111 | DI7: 112 | DJ7: 113 | DK7: 114 | DL7: 115 | DM7: 116 | DN7: 117 | DO7: 118 | DP7: 119 | DQ7: 120 | DR7: 121 | DS7: 122 | DT7: 123 | DU7: 124 | DV7: 125 | DW7: 126 | DX7: 127 | DY7: 128 | DZ7: 129 | EA7: 130 | EB7: 131 | EC7: 132 | ED7: 133 | EE7: 134 | EF7: 135 | EG7: 136 | EH7: 137 | EI7: 138 | EJ7: 139 | EK7: 140 | EL7: 141 | EM7: 142 | EN7: 143 | EO7: 144 | EP7: 145 | EQ7: 146 | ER7: 147 | ES7: 148 | ET7: 149 | EU7: 150
A8: DIM_Forecast_Year | B8: FY_01 | C8: FY_02 | D8: FY_03 | E8: FY_04 | F8: FY_05 | G8: FY_06 | H8: FY_07 | I8: FY_08 | J8: FY_09 | K8: FY_10 | L8: FY_11 | M8: FY_12 | N8: FY_13 | O8: FY_14 | P8: FY_15 | Q8: FY_16 | R8: FY_17 | S8: FY_18 | T8: FY_19 | U8: FY_20 | V8: FY_21 | W8: FY_22 | X8: FY_23 | Y8: FY_24 | Z8: FY_25 | AA8: FY_26 | AB8: FY_27 | AC8: FY_28 | AD8: FY_29 | AE8: FY_30
A9: DIM_FRS_Crit_Factor | B9: Crit factor 01 | C9: Crit factor 02 | D9: Crit factor 03 | E9: Crit factor 04 | F9: Crit factor 05

Sheet PriorValues (hidden)
A1: Prior Value Cache
A2: Warning - This is a hidden system sheet, pleae do not modify it or you will break any references to prior period / prior year values
B4: DataPointId | C4: PriorPeriodValue | D4: PriorYearValue

Sheet OtherSurveyValues (hidden)
A1: Other Survey Value Cache
A2: Warning - This is a hidden system sheet, pleae do not modify it or you will break any references to other survey values
B4: DataPointId | C4: SurveyId | D4: TimePeriodId | E4: Value
